{"text_format":"1","workbook":"xlsx","n_sheets":1,"sheets":["frmodel"],"not_rendered":{"charts":3,"images":0,"macros":1,"external_links":0,"defined_names":1,"comments":1,"pivot_tables":0},"unopened":[],"bounds":{"document_bytes":16777216,"sheet_cells":100000,"rows_first":2000,"rows_last":500,"rows_between":2000,"halvings":0,"cell_chars":16384,"cell_head_chars":4096},"cells_cut":0,"cells_raw":0,"read":"whole","date_system":"1900"}

{"sheet":"frmodel","index":0,"n_rows":389,"n_cols":60,"rows_kept":389,"cut":false,"hidden":false,"merged":[]}
["Fiscal Regime Calculations: Trinidad & Tobago 0403"]
[]
[]
["Inputs and Assumptions",null,null,null,null,null,null,"Fiscal Calculations",null,null,null,null,null,null,null,null,null,null,null,null,null,null,null,null,null,null,null,null,null,null,null,null,null,null,null,null,null,null,null,null,null,null,null,null,null,null,null,null,"Outputs"]
[]
["Exploration Inputs",null,null,null,null,null,null,"ExplorationData",null,null,null,null,null,null,"Royalty",null,"Bonuses+Fees",null,null,null,null,null,"ELT",null,null,null,null,"ABEX","Recoverable Costs",null,null,"Recovered Costs","Profit Oil",null,null,"Income Tax",null,null,null,"CashFlow",null,null,null,null,"Scenario Rendering",null,null,null,null,"Government CF Split",null,null,null,null,null,null,null,"CtrTake Distribution"]
[]
["Input","Description","Units","lo","hi","Qty",null,"year","expex","devex","production","opex_fixed","opex_var","gross_rev","royalty","netrev","license_fee","annual_charge","trg_fee","tech_asst_bonus","scholarship_fee","prod_bonus","gocf","gocf_cum","elf1","year2","elf2","abex","capex_dep","rcvb_costs","rcost_ob","rcvd_cost","profit_oil","gov_profitoil","ct_profitoil","tax_allowances","tax_position","cf_taxloss","income_tax","NCF_ctr","NCF_gov","NCF_ctr_PV10","NCF_gov_PV10",null,"Iteration","CtrTake_NCF","NPV10",null,null,null,"govt","contractor"]
["recoverable_reserves","BOE","BOE",18562994,371259873,{"$f":"RANDBETWEEN(D9,E9)","v":310046272},null,"OB",null,null,null,null,null,null,null,null,null,null,null,null,null,null,null,null,null,null,null,null,null,null,null,null,null,null,null,null,null,null,null,null,null,null,null,null,1,0.12067402536918104,11.781309962834026,null,null,"NPV0",{"$f":"SUM(AO10:AO39)/SUM(AN10:AO39)","v":0.88947020248491671},{"$f":"1-AY9","v":0.11052979751508329},null,null,null,null,null,"CtrTake",{"$f":"SUMPRODUCT(BF12:BF28,BH12:BH28)","v":7.3884514435695534E-2}]
[null,null,null,null,null,null,null,{"$f":"F11","v":2019},{"$f":"IF(H10<=$F$11+$F$15-1,$F$14/$F$15,0)","v":2},{"$f":"IF(H10=$F$11+$F$16,$F$18*$F$19,IF(AND(H10>$F$11+$F$16,H10<$F$11+SUM($F$16:$F$17)),$F$19*(1-$F$18)/($F$17-1),0))","v":0},{"$f":"IFERROR(IF(H10=$B$29,$F$24,IF(H10>$B$29,VLOOKUP(H10-1,$B$29:$C$31,2,TRUE)*K9,0)),0)","v":0},{"$f":"IF(SUM(K10:K10)>0,SUM($I$10:$J$39)*$D$35,0)","v":0},{"$f":"K10*D$36","v":0},{"$f":"K10*$D$39*365/1000000","v":0},{"$f":"IFERROR(N10*$D$44,0)","v":0},{"$f":"IFERROR(N10-O10,0)","v":0},{"$f":"IF(H10=\"STOP\",0,IF(H10=$B$48,$B$49,IF(AND(H10<$B$48+$A$50,H10<>$B$48),Q9,Q9*(1+$B$51))))","v":5.5},{"$f":"C56","v":0.3},{"$f":"IF(H10=\"STOP\",0,IF(H10=$F$11,$C$57,IF(H10<$C$54,S9*(1+$C$55),IF(H10=$C$54,$C$58,IF(H10<$B$29,S9*(1+$C$55),S9*(1+$C$59))))))","v":0.12},{"$f":"C60","v":0.3},{"$f":"C61","v":0.1},{"$f":"IFERROR(VLOOKUP(K10,$A$70:$B$74,2,TRUE),0)","v":0},{"$f":"N10-SUM(L10:M10,O10,Q10:V10)","v":-6.3199999999999994},{"$f":"IF(H10=\"STOP\",0,SUM(W$10:W10))","v":-6.3199999999999994},{"$f":"IF(H10<=IF(X10=MAX($X$10:$X$39),H10,0),1,0)","v":0},{"$f":"H10","v":2019},{"$f":"IF(SUM(Y$10:Y10)<1,1,IF(Y10=1,1,0))","v":1},{"$f":"K10*$C$62*365/1000000","v":0},{"$f":"SUM(OFFSET(J10,-$C$63+1,-1,$C$63,2))/$C$63","v":0.4},{"$f":"SUM(I10,L10:M10,Q10:V10,AB10:AC10)","v":8.7200000000000006},{"$f":"AD10","v":8.7200000000000006},{"$f":"MIN(AE10,P10)","v":0},{"$f":"P10-AF10","v":0},{"$f":"(IFERROR(VLOOKUP(K10,$B$80:$C$84,2,TRUE),0)+0.7*(($D$39-100)/$D$39)*(1-IFERROR(VLOOKUP(K10,$B$80:$C$84,2,TRUE),0)))*AG10","v":0},{"$f":"AG10-AH10","v":0},{"$f":"SUM(O10,Q10:V10,L10:M10,AB10:AC10)","v":6.72},{"$f":"IF(H10=\"STOP\",0,N10-AJ10+AL9)","v":-6.72},{"$f":"IF(AK10<0,AK10,0)","v":-6.72},{"$f":"IF(AND(AL10<0,H10=$F$11+$F$12-1),AL10,IF(AK10>0,AK10*$C$64,0))","v":0},{"$f":"SUM(AF10,AI10)-SUM(I10:J10,L10:M10,AB10,Q10:V10,AM10)","v":-8.32},{"$f":"IF(N10>0,N10-AN10,0)","v":0},{"$f":"IF(H10=\"STOP\",0,AN10/(1+$C$65)^($H10-$F$11))","v":-8.32},{"$f":"IF(H10=\"STOP\",0,AO10/(1+$C$65)^($H10-$F$11))","v":0},null,2,0.13944855422367974,123.14583676816632,null,null,"NPV10",{"$f":"SUM(AQ10:AQ39)/SUM(AP10:AQ39)","v":1.0063833156161817},{"$f":"1-AY10","v":-6.3833156161816618E-3}]
["Licence Start",null,null,2015,2020,{"$f":"RANDBETWEEN(D11,E11)","v":2019},null,{"$f":"IF(COUNT(H$10:H10)<$F$12,H10+1,\"STOP\")","v":2020},2,0,0,0,0,{"$f":"K11*$D$39*365/1000000","v":0},{"$f":"IFERROR(N11*$D$44,\"\")","v":0},{"$f":"N11-O11","v":0},5.5,{"$f":"IF(H11=\"STOP\",0,R10*(1+$C$55))","v":0.312},0.12479999999999999,null,{"$f":"IF(H11=\"STOP\",0,U10*(1+$C$55))","v":0.10400000000000001},0,-6.0407999999999999,{"$f":"IF(H11=\"STOP\",0,SUM(W$10:W11))","v":-12.360799999999999},0,2020,{"$f":"IF(SUM(Y$10:Y11)<1,1,IF(Y11=1,1,0))","v":1},0,0.8,{"$f":"SUM(I11,L11:M11,Q11:V11,AB11:AC11)","v":8.8407999999999998},{"$f":"IF(H11=\"STOP\",0,AD11+AE10-AF10)","v":17.5608},0,0,0,{"$f":"AG11-AH11","v":0},6.8407999999999998,{"$f":"IF(H11=\"STOP\",0,N11-AJ11+AL10)","v":-13.5608},{"$f":"IF(AK11<0,AK11,0)","v":-13.5608},0,-8.0407999999999991,0,-7.30981818181818,{"$f":"IF(H11=\"STOP\",0,AO11/(1+$C$65)^($H11-$F$11))","v":0},null,3,0.12917683629959298,-21.858871443310566,null,null,null,null,null,null,null,null,null,null,"ctr_take","Count of Iterations","probability"]
["License Duration",null,null,12,40,{"$f":"RANDBETWEEN(D12,E12)","v":22},null,{"$f":"IF(COUNT(H$10:H11)<$F$12,H11+1,\"STOP\")","v":2021},0,0,0,0,0,{"$f":"K12*$D$39*365/1000000","v":0},0,{"$f":"N12-O12","v":0},5.5,{"$f":"IF(H12=\"STOP\",0,R11*(1+$C$55))","v":0.32447999999999999},0.12979199999999999,null,{"$f":"IF(H12=\"STOP\",0,U11*(1+$C$55))","v":0.10816000000000002},0,-6.0624320000000003,{"$f":"IF(H12=\"STOP\",0,SUM(W$10:W12))","v":-18.423231999999999},0,2021,{"$f":"IF(SUM(Y$10:Y12)<1,1,IF(Y12=1,1,0))","v":1},0,0.8,6.8624320000000001,{"$f":"IF(H12=\"STOP\",0,AD12+AE11-AF11)","v":24.423231999999999},0,0,0,0,6.8624320000000001,-20.423231999999999,{"$f":"IF(AK12<0,AK12,0)","v":-20.423231999999999},0,-6.0624320000000003,0,-5.0102743801652885,0,null,4,0.13274740573930033,-1038.7930278515068,null,null,null,null,null,null,null,null,null,null,-0.2,{"$f":"FREQUENCY(AT9:AT1008,BF12:BF24)","v":0},{"$f":"BG12/SUM($BG$12:$BG$24)","v":0}]
[null,null,null,null,null,null,null,{"$f":"IF(COUNT(H$10:H12)<$F$12,H12+1,\"STOP\")","v":2022},0,3475.5210966274858,5000,89.442542484706777,{"$f":"K13*D$36","v":0.5},{"$f":"K13*$D$39*365/1000000","v":200.75},0,200.75,5.5,0.33745920000000001,0.15,null,0.11248640000000003,0,104.70751191529322,{"$f":"IF(H13=\"STOP\",0,SUM(W$10:W13))","v":86.284279915293226},0,2022,{"$f":"IF(SUM(Y$10:Y13)<1,1,IF(Y13=1,1,0))","v":1},0.45624999999999999,695.90421932549714,792.40295741020395,816.82618941020394,200.75,0,0,0,792.40295741020395,-612.07618941020394,-612.07618941020394,0,-3371.2698347121927,3572.0198347121927,-2532.8849246522855,2683.7113709332771,null,5,-7.3645468500035172E-2,-1752.5778495967274,null,null,"Project NPV (Contractor)",null,null,null,null,null,null,null,-0.15,0,{"$f":"BG13/SUM($BG$12:$BG$24)","v":0}]
["expex total",null,null,2,4,{"$f":"RANDBETWEEN(D14,E14)","v":4},null,{"$f":"IF(COUNT(H$10:H13)<$F$12,H13+1,\"STOP\")","v":2023},0,1489.5090414117799,7500,89.442542484706777,0.75,{"$f":"K14*$D$39*365/1000000","v":301.125},0,301.125,5.5,0.35095756800000005,0.15037499999999998,null,0.11698585600000003,0,204.81413909129321,{"$f":"IF(H14=\"STOP\",0,SUM(W$10:W14))","v":291.09841900658643},0,2023,{"$f":"IF(SUM(Y$10:Y14)<1,1,IF(Y14=1,1,0))","v":1},0.68437499999999996,993.80602760785314,1090.8012635165599,1706.8774529267639,301.125,0,0,0,1090.8012635165599,-1401.7524529267639,-1401.7524529267639,0,{"$f":"SUM(AF14,AI14)-SUM(I14:J14,L14:M14,AB14,Q14:V14,AM14)","v":-1285.3792773204866},1586.5042773204866,{"$f":"IF(H14=\"STOP\",0,AN14/(1+$C$65)^($H14-$F$11))","v":-877.93134165732272},{"$f":"IF(H14=\"STOP\",0,AO14/(1+$C$65)^($H14-$F$11))","v":1083.6037684041296},null,6,-7.7405159989175409E-2,-3756.7621948079955,null,null,null,null,null,null,null,null,null,null,-0.1,35,9.1863517060367453E-2]
["expex_dur",null,null,1,2,{"$f":"RANDBETWEEN(D15,E15)","v":2},null,{"$f":"IF(COUNT(H$10:H14)<$F$12,H14+1,\"STOP\")","v":2024},0,0,11250,89.442542484706777,1.125,451.6875,0,451.6875,5.83,0.36499587072000006,0.15075093749999996,null,0.12166529024000003,0,354.65254541683322,{"$f":"IF(H15=\"STOP\",0,SUM(W$10:W15))","v":645.75096442341965},0,2024,{"$f":"IF(SUM(Y$10:Y15)<1,1,IF(Y15=1,1,0))","v":1},1.0265625,993.40602760785316,1091.4675446910198,2497.2199976177835,451.6875,0,0,0,1091.4675446910198,-2041.5324976177837,-2041.5324976177837,0,353.62598291683321,98.061517083166791,219.5739131808142,60.888486928467849,null,7,0.13796549780621048,88.785229374114493,null,null,"NPV10 MMUSD",{"$f":"SUM(AP10:AP39)","v":-72.272236832261228},null,null,null,null,null,null,-0.05,32,8.3989501312335957E-2]
["devex start",null,null,2,4,{"$f":"RANDBETWEEN(D16,E16)","v":3},null,{"$f":"IF(COUNT(H$10:H15)<$F$12,H15+1,\"STOP\")","v":2025},0,0,16875,89.442542484706777,1.6875,677.53125,0,677.53125,6.1798000000000002,0.37959570554880007,0.15112781484374996,null,0.12653190184960003,0,579.56415209305112,{"$f":"IF(H16=\"STOP\",0,SUM(W$10:W16))","v":1225.3151165164709},0,2025,{"$f":"IF(SUM(Y$10:Y16)<1,1,IF(Y16=1,1,0))","v":1},1.53984375,993.00602760785318,1092.512969264802,3138.0454668825855,677.53125,0,0,0,1092.512969264802,-2456.514216882586,-2456.514216882586,0,578.02430834305108,99.506941656948925,326.27965299701833,56.169074424729871,null,8,6.3706436383673792E-2,1212.0478836617876,null,null,null,null,null,null,null,null,null,null,0,44,0.11548556430446194]
["devex dur",null,null,1,3,{"$f":"RANDBETWEEN(D17,E17)","v":2},null,{"$f":"IF(COUNT(H$10:H16)<$F$12,H16+1,\"STOP\")","v":2026},0,0,25312.5,89.442542484706777,2.53125,1016.296875,0,1016.296875,6.5505880000000003,0.39477953377075209,0.15150563438085932,null,0.13159317792358405,1.5,915.59461616921806,{"$f":"IF(H17=\"STOP\",0,SUM(W$10:W17))","v":2140.9097326856891},0,2026,{"$f":"IF(SUM(Y$10:Y17)<1,1,IF(Y17=1,1,0))","v":1},2.3097656249999998,993.00602760785318,1096.0180520636352,3556.5322689462209,1016.296875,0,0,0,1096.0180520636352,-2536.2353939462209,-2536.2353939462209,0,913.28485054421799,103.01202445578201,468.65953531388288,52.861456624864609,null,9,0.13808736817806821,392.61925553648462,null,null,null,null,null,null,null,null,null,null,0.05,48,0.12598425196850394]
["devex y1 weight",null,null,4,8,{"$f":"RANDBETWEEN(D18,E18)/10","v":0.7},null,{"$f":"IF(COUNT(H$10:H17)<$F$12,H17+1,\"STOP\")","v":2027},0,0,37968.75,89.442542484706777,3.796875,1524.4453125,0,1524.4453125,6.9436232800000006,0.41057071512158216,0.15188439846681145,null,0.13685690504052742,1.5,1422.0629597166644,{"$f":"IF(H18=\"STOP\",0,SUM(W$10:W18))","v":3562.9726924023535},0,2027,{"$f":"IF(SUM(Y$10:Y18)<1,1,IF(Y18=1,1,0))","v":1},3.4646484375000002,297.901808282356,403.74880950319169,2943.9842034494127,1524.4453125,0,0,0,403.74880950319169,-1415.5388909494127,-1415.5388909494127,0,1418.5983112791644,105.84700122083564,661.78658176479451,49.378407242588459,null,10,-0.1068425393633412,-855.40207246736009,null,null,"Production Profile",null,null,null,null,null,null,null,0.1,49,0.12860892388451445]
["devex total",null,"MMUSD",60000,70000,{"$f":"F9/RANDBETWEEN(D19,E19)","v":4965.0301380392657},null,{"$f":"IF(COUNT(H$10:H18)<$F$12,H18+1,\"STOP\")","v":2028},0,0,56953.125,89.442542484706777,5.6953125,2286.66796875,0,2286.66796875,7.360240676800001,0.42699354372644549,0.15226410946297847,null,0.14233118124214852,2,2181.4482842540615,{"$f":"IF(H19=\"STOP\",0,SUM(W$10:W19))","v":5744.4209766564145},0,2028,{"$f":"IF(SUM(Y$10:Y19)<1,1,IF(Y19=1,1,0))","v":1},5.1969726562499998,0,110.41665715218834,1529.9555481016009,1529.9555481016009,756.71242064839907,459.11806321885592,297.59435742954315,110.41665715218835,760.71242064839907,0,190.17810516209977,1526.955143216856,759.71282553314404,647.57803959988485,322.19239995563737,null,11,0.1399302276958061,377.68558107866778,null,null,null,null,null,null,null,null,null,null,0.15,173,0.45406824146981628]
[null,null,null,null,null,null,null,{"$f":"IF(COUNT(H$10:H19)<$F$12,H19+1,\"STOP\")","v":2029},0,0,85429.6875,89.442542484706777,8.54296875,3430.001953125,0,3430.001953125,7.8018551174080013,0.44407328547550334,0.1526447697366359,null,0.14802442849183448,3,3320.4698442891813,{"$f":"IF(H20=\"STOP\",0,SUM(W$10:W20))","v":9064.8908209455949},0,2029,{"$f":"IF(SUM(Y$10:Y20)<1,1,IF(Y20=1,1,0))","v":1},7.7954589843750002,0,117.32756782019375,117.32756782019374,117.32756782019374,3312.6743853048065,2071.9272518997336,1240.7471334050729,117.32756782019375,3312.674385304806,0,828.16859632620151,412.57853707887136,3017.4234160461288,159.06688633341199,1163.3473494241182,null,12,-0.10591629802629132,-986.97675604600749,null,null,null,null,null,null,null,null,null,null,0.2,0,0]
[null,null,null,null,null,null,null,{"$f":"IF(COUNT(H$10:H20)<$F$12,H20+1,\"STOP\")","v":2030},0,0,85429.6875,89.442542484706777,8.54296875,3430.001953125,0,3430.001953125,8.2699664244524822,0.46183621689452348,0.15302638166097748,null,0.15394540563150785,3,3319.9776674616537,{"$f":"IF(H21=\"STOP\",0,SUM(W$10:W21))","v":12384.868488407248},0,2030,{"$f":"IF(SUM(Y$10:Y21)<1,1,IF(Y21=1,1,0))","v":1},7.7954589843750002,0,117.81974464772127,117.81974464772128,117.81974464772128,3312.1822084772789,2071.6194176657891,1240.5627908114898,117.81974464772127,3312.1822084772789,0,828.04555211931972,412.51723869217017,3017.4847144328296,144.58477559251497,1057.6099841870575,null,13,7.8985867070437421E-2,-1354.0230461926726,null,null,null,null,null,null,null,null,null,null,0.25,0,0]
["Production Schedule",null,null,null,null,null,null,{"$f":"IF(COUNT(H$10:H21)<$F$12,H21+1,\"STOP\")","v":2031},0,0,80303.90625,89.442542484706777,8.0303906250000008,3224.2018359375002,0,3224.2018359375002,8.7661644099196323,0.48030966557030441,0.15340894761512991,null,0.16010322185676817,3,3114.1689165828316,{"$f":"IF(H22=\"STOP\",0,SUM(W$10:W22))","v":15499.03740499008},0,2031,{"$f":"IF(SUM(Y$10:Y22)<1,1,IF(Y22=1,1,0))","v":1},7.3277314453124998,0,117.3606507999811,117.3606507999811,117.3606507999811,3106.841185137519,1943.1879412496482,1163.6532438878708,117.3606507999811,3106.841185137519,0,776.71029628437975,386.94294760349101,2837.258888334009,123.29194780215599,904.03811964584247,null,14,0,7.2526454999472953,null,null,null,null,null,null,null,null,null,null,0.3,0,0]
["devex lag","years after initial devex until produciton starts",null,0,2,{"$f":"RANDBETWEEN(D23,E23)","v":0},null,{"$f":"IF(COUNT(H$10:H22)<$F$12,H22+1,\"STOP\")","v":2032},0,0,75485.671875,89.442542484706777,{"$f":"K23*D$36","v":7.5485671875000007},3030.7497257812502,0,3030.7497257812502,9.2921342745148099,0.49952205219311663,0.15379246998416773,null,0.16650735073103889,3,2920.6466599616201,{"$f":"IF(H23=\"STOP\",0,SUM(W$10:W23))","v":18419.6840649517},0,2032,{"$f":"IF(SUM(Y$10:Y23)<1,1,IF(Y23=1,1,0))","v":1},6.8880675585937503,0,116.99113337822365,116.99113337822365,116.99113337822365,2913.7585924030263,1822.423555975711,1091.3350364273153,116.99113337822365,{"$f":"IF(H23=\"STOP\",0,N23-AJ23+AL22)","v":2913.7585924030263},0,728.43964810075659,362.89538832655876,2667.8543374546916,105.11786756891709,772.78237188664536,null,15,9.6196154394442512E-2,-2157.2716277387644,null,null,null,null,null,null,null,null,null,null,0.35,0,0]
["first yr prod rate",null,"bpd",1000,8000,5000,null,{"$f":"IF(COUNT(H$10:H23)<$F$12,H23+1,\"STOP\")","v":2033},0,0,70956.531562499993,89.442542484706777,7.09565315625,2848.9047422343747,0,2848.9047422343747,9.8496623309856997,0.51950293428084127,0.15417695115912813,null,0.17316764476028046,2,2739.6700367322319,{"$f":"IF(H24=\"STOP\",0,SUM(W$10:W24))","v":21159.35410168393},0,2033,{"$f":"IF(SUM(Y$10:Y24)<1,1,IF(Y24=1,1,0))","v":1},6.4747835050781246,0,115.70948900722084,115.70948900722084,115.70948900722084,2733.1952532271539,1658.3041018216386,1074.8911514055153,115.70948900722084,2733.1952532271539,0,683.29881330678847,391.59233809872671,2457.3124041356477,103.11850156818817,647.08715760292841,null,16,0.12479951077426976,-374.74584420220572,null,null,null,null,null,null,null,null,null,null,0.4,0,0]
["yrs until plateau",null,null,1,4,{"$f":"ROUND(F12*RANDBETWEEN(D25,E25)/10,0)","v":7},null,{"$f":"IF(COUNT(H$10:H24)<$F$12,H24+1,\"STOP\")","v":2034},0,0,66699.139668749995,89.442542484706777,6.6699139668749998,2677.9704577003122,0,2677.9704577003122,10.440642070844842,0.54028305165207491,0.15456239353702594,null,0.18009435055069167,2,2568.5424193821459,{"$f":"IF(H25=\"STOP\",0,SUM(W$10:W25))","v":23727.896521066075},0,2034,{"$f":"IF(SUM(Y$10:Y25)<1,1,IF(Y25=1,1,0))","v":1},6.0862964947734373,0,115.51433481293984,115.51433481293984,115.51433481293984,2562.4561228873722,1554.7120149227565,1007.7441079646158,115.51433481293985,2562.4561228873722,0,640.61403072184305,367.13007724277259,2310.8403804575396,87.888021576206583,553.19681444274761,null,17,4.5579375579641535E-2,-1159.6516191154533]
["plateau duration",null,null,1,2,{"$f":"ROUND(F12*RANDBETWEEN(D26,E26)/10,0)","v":2},null,{"$f":"IF(COUNT(H$10:H25)<$F$12,H25+1,\"STOP\")","v":2035},0,0,62697.191288624992,89.442542484706777,6.2697191288624996,2517.2922302382935,0,2517.2922302382935,11.067080595095533,0.56189437371815787,0.15494879952086851,null,0.18729812457271935,2,2407.6087467318171,{"$f":"IF(H26=\"STOP\",0,SUM(W$10:W26))","v":26135.505267797893},0,2035,{"$f":"IF(SUM(Y$10:Y26)<1,1,IF(Y26=1,1,0))","v":1},5.7211187050870302,0,115.4046022115636,115.4046022115636,115.4046022115636,2401.88762802673,1457.2907299500359,944.59689807669406,115.4046022115636,2401.88762802673,0,600.4719070066825,344.12499107001145,2173.1672391682823,74.891624410359171,472.94450818765631,null,18,0.13417561441198811,-991.03721640129072]
[null,null,null,null,null,null,null,{"$f":"IF(COUNT(H$10:H26)<$F$12,H26+1,\"STOP\")","v":2036},0,0,58935.359811307491,89.442542484706777,5.8935359811307491,2366.2546964239955,0,2366.2546964239955,11.731105430801264,0.58437014866688419,0.15533617151967066,null,0.19479004955562815,2,2256.2530161576146,{"$f":"IF(H27=\"STOP\",0,SUM(W$10:W27))","v":28391.758283955507},0,2036,{"$f":"IF(SUM(Y$10:Y27)<1,1,IF(Y27=1,1,0))","v":1},5.3778515827818083,0,115.37953184916276,115.37953184916276,115.37953184916276,2250.8751645748325,1365.6673498520393,885.20781472279327,115.37953184916279,2250.8751645748325,0,562.71879114370813,322.48902357908514,2043.7656728449103,63.802734093931939,404.348142853463,null,19,4.4365389232797203E-2,-4971.2145493787584]
["prod_phase","switch_yr","rate",null,null,null,null,{"$f":"IF(COUNT(H$10:H27)<$F$12,H27+1,\"STOP\")","v":2037},0,0,55399.238222629036,89.442542484706777,5.5399238222629039,2224.2794146385554,0,2224.2794146385554,12.434971756649341,0.6077449546135596,0.15572451194846984,null,0.20258165153785329,2,2113.8959254568363,{"$f":"IF(H28=\"STOP\",0,SUM(W$10:W28))","v":30505.654209412343},0,2037,{"$f":"IF(SUM(Y$10:Y28)<1,1,IF(Y28=1,1,0))","v":1},5.0551804878148996,0,115.43866966953381,115.43866966953382,115.43866966953382,2108.8407449690217,1279.4911938112045,829.34955115781713,115.43866966953381,2108.8407449690217,0,527.21018624225542,302.13936491556171,1922.1400497229938,54.342420557651252,345.71378337921345,null,20,-3.5339762515322004E-2,-5189.8362360295887]
["prod_start",{"$f":"F11+F16+F23","v":2022},1.5,null,null,null,null,{"$f":"IF(COUNT(H$10:H28)<$F$12,H28+1,\"STOP\")","v":2038},0,0,52075.283929271289,89.442542484706777,5.207528392927129,2090.8226497602418,0,2090.8226497602418,13.181070062048303,0.63205475279810197,0.156113823228341,null,0.21068491759936742,2,1979.9926553269338,{"$f":"IF(H29=\"STOP\",0,SUM(W$10:W29))","v":32485.646864739276},0,2038,{"$f":"IF(SUM(Y$10:Y29)<1,1,IF(Y29=1,1,0))","v":1},4.7518696585460054,0,115.58186409185402,115.58186409185402,115.58186409185402,1975.2407856683878,1198.4324548682564,776.80833080013144,115.58186409185402,1975.2407856683878,0,493.81019641709696,282.99813438303443,1807.8245153772073,46.272456360634173,295.59375427632273,null,21,0.11071872563356311,384.17514852446641]
["plateau_start",{"$f":"B29+F25","v":2029},1,null,null,null,null,{"$f":"IF(COUNT(H$10:H29)<$F$12,H29+1,\"STOP\")","v":2039},0,0,48950.766893515007,89.442542484706777,4.8950766893515008,1965.3732907746275,0,1965.3732907746275,13.971934265771202,0.65733694291002609,0.15650410778641186,null,0.21911231430334213,1.5,1854.5307839697982,{"$f":"IF(H30=\"STOP\",0,SUM(W$10:W30))","v":34340.177648709076},0,2039,{"$f":"IF(SUM(Y$10:Y30)<1,1,IF(Y30=1,1,0))","v":1},4.4667574790332445,0,115.3092642838625,115.30926428386249,115.30926428386249,1850.0640264907652,1122.4843011635787,727.57972532718645,115.3092642838625,1850.0640264907649,0,462.51600662269124,{"$f":"SUM(AF30,AI30)-SUM(I30:J30,L30:M30,AB30,Q30:V30,AM30)","v":265.06371870449516},1700.3095720701324,39.400032805807186,252.74018355668335,null,22,-9.5895326979952733E-2,363.55172741438872]
["plateaut_end",{"$f":"B30+F26-1","v":2030},0.94,null,null,null,null,{"$f":"IF(COUNT(H$10:H30)<$F$12,H30+1,\"STOP\")","v":2040},0,0,46013.720879904104,89.442542484706777,4.601372087990411,1847.4508933281497,0,{"$f":"N31-O31","v":1847.4508933281497},14.810250321717474,0.6836304206264272,0.15689536805587787,null,0.22787680687547582,1.5,1736.0283258381774,{"$f":"IF(H31=\"STOP\",0,SUM(W$10:W31))","v":36076.205974547251},1,2040,{"$f":"IF(SUM(Y$10:Y31)<1,1,IF(Y31=1,1,0))","v":1},4.1987520302912493,0,115.6213195202637,115.62131952026368,115.62131952026368,1731.8295738078859,1050.7482341448936,681.08133966299238,115.6213195202637,{"$f":"IF(H31=\"STOP\",0,N31-AJ31+AL30)","v":1731.8295738078859},0,432.95739345197148,{"$f":"SUM(AF31,AI31)-SUM(I31:J31,L31:M31,AB31,Q31:V31,AM31)","v":248.12394621102089},1599.3269471171288,33.529130513157796,216.11796346933406,null,23,9.9705497630787621E-2,-1222.6311414826573]
[null,null,null,null,null,null,null,{"$f":"IF(COUNT(H$10:H31)<$F$12,H31+1,\"STOP\")","v":"STOP"},0,0,0,0,0,0,0,0,0,0,0,null,0,0,0,{"$f":"IF(H32=\"STOP\",0,SUM(W$10:W32))","v":0},0,"STOP",{"$f":"IF(SUM(Y$10:Y32)<1,1,IF(Y32=1,1,0))","v":0},0,0,0,0,0,0,0,0,0,0,0,0,0,0,0,0,null,24,-0.10590662063342959,-804.17689921174212]
[null,null,null,null,null,null,null,{"$f":"IF(COUNT(H$10:H32)<$F$12,H32+1,\"STOP\")","v":"STOP"},0,0,0,0,0,0,0,0,0,0,0,null,0,0,0,{"$f":"IF(H33=\"STOP\",0,SUM(W$10:W33))","v":0},0,"STOP",{"$f":"IF(SUM(Y$10:Y33)<1,1,IF(Y33=1,1,0))","v":0},0,0,0,0,0,0,0,0,0,0,0,0,0,0,0,0,null,25,0.12684715865379548,-426.76879693000325]
["Pre-ELT Inputs2",null,null,null,null,null,null,{"$f":"IF(COUNT(H$10:H33)<$F$12,H33+1,\"STOP\")","v":"STOP"},0,0,0,0,0,0,0,0,0,0,0,null,0,0,0,{"$f":"IF(H34=\"STOP\",0,SUM(W$10:W34))","v":0},0,"STOP",{"$f":"IF(SUM(Y$10:Y34)<1,1,IF(Y34=1,1,0))","v":0},0,0,0,0,0,0,0,0,0,0,0,0,0,0,0,0,null,26,1.1042629805806503E-2,-2130.3295736544615]
["fixed opex multiplier","fixed opex per year",null,1.7999999999999999E-2,null,null,null,{"$f":"IF(COUNT(H$10:H34)<$F$12,H34+1,\"STOP\")","v":"STOP"},0,0,0,0,0,0,0,0,0,0,0,null,0,0,0,{"$f":"IF(H35=\"STOP\",0,SUM(W$10:W35))","v":0},0,"STOP",{"$f":"IF(SUM(Y$10:Y35)<1,1,IF(Y35=1,1,0))","v":0},0,0,0,0,0,0,0,0,0,0,0,0,0,0,0,0,null,27,-8.2603188347042389E-2,-779.26468207063351]
["var opex multiplier","production-linked multipllier to generate $mm opex cost",null,1E-4,null,null,null,{"$f":"IF(COUNT(H$10:H35)<$F$12,H35+1,\"STOP\")","v":"STOP"},0,0,0,0,0,0,0,0,0,0,0,null,0,0,0,{"$f":"IF(H36=\"STOP\",0,SUM(W$10:W36))","v":0},0,"STOP",{"$f":"IF(SUM(Y$10:Y36)<1,1,IF(Y36=1,1,0))","v":0},0,0,0,0,0,0,0,0,0,0,0,0,0,0,0,0,null,28,-7.4129050447695688E-2,21.840271647236278]
["abex multiplier","devex linked multiplier to show abex cost in $mm",null,{"$f":"0.12","v":0.12},null,null,null,{"$f":"IF(COUNT(H$10:H36)<$F$12,H36+1,\"STOP\")","v":"STOP"},0,0,0,0,0,0,0,0,0,0,0,null,0,0,0,{"$f":"IF(H37=\"STOP\",0,SUM(W$10:W37))","v":0},0,"STOP",{"$f":"IF(SUM(Y$10:Y37)<1,1,IF(Y37=1,1,0))","v":0},0,0,0,0,0,0,0,0,0,0,0,0,0,0,0,0,null,29,8.0866922074135372E-3,-20617.051455340887]
["total abex",null,null,{"$f":"D37*F19","v":595.80361656471189},null,null,null,{"$f":"IF(COUNT(H$10:H37)<$F$12,H37+1,\"STOP\")","v":"STOP"},0,0,0,0,0,0,0,0,0,0,0,null,0,0,0,{"$f":"IF(H38=\"STOP\",0,SUM(W$10:W38))","v":0},0,"STOP",{"$f":"IF(SUM(Y$10:Y38)<1,1,IF(Y38=1,1,0))","v":0},0,0,0,0,0,0,0,0,0,0,0,0,0,0,0,0,null,30,0.13935037428105312,-219.71184460368082]
["wellhead bbl price",null,"$/bbl",110,null,null,null,{"$f":"IF(COUNT(H$10:H38)<$F$12,H38+1,\"STOP\")","v":"STOP"},0,{"$f":"IF(H39=$F$11+$F$16,$F$18*$F$19,IF(AND(H39>$F$11+$F$16,H39<$F$11+SUM($F$16:$F$17)),$F$19*(1-$F$18)/($F$17-1),0))","v":0},{"$f":"IFERROR(IF(H39=$B$29,$F$24,IF(H39>$B$29,VLOOKUP(H39-1,$B$29:$C$31,2,TRUE)*K38,0)),0)","v":0},0,{"$f":"K39*D$36","v":0},{"$f":"K39*$D$39*365/1000000","v":0},0,{"$f":"N39-O39","v":0},{"$f":"IF(H39=\"STOP\",0,IF(H39=$B$48,$B$49,IF(AND(H39<$B$48+$A$50,H39<>$B$48),Q38,Q38*(1+$B$51))))","v":0},{"$f":"IF(H39=\"STOP\",0,R38*(1+$C$55))","v":0},{"$f":"IF(H39=\"STOP\",0,IF(H39=$F$11,$C$57,IF(H39<$C$54,S38*(1+$C$55),IF(H39=$C$54,$C$58,IF(H39<$B$29,S38*(1+$C$55),S38*(1+$C$59))))))","v":0},null,{"$f":"IF(H39=\"STOP\",0,U38*(1+$C$55))","v":0},{"$f":"IFERROR(VLOOKUP(K39,$A$70:$B$74,2,TRUE),0)","v":0},{"$f":"N39-SUM(L39:M39,O39,Q39:V39)","v":0},{"$f":"IF(H39=\"STOP\",0,SUM(W$10:W39))","v":0},{"$f":"IF(H39<=IF(X39=MAX($X$10:$X$39),H39,0),1,0)","v":0},{"$f":"H39","v":"STOP"},{"$f":"IF(SUM(Y$10:Y39)<1,1,IF(Y39=1,1,0))","v":0},{"$f":"K39*$C$62*365/1000000","v":0},{"$f":"SUM(OFFSET(J39,-$C$63+1,-1,$C$63,2))/$C$63","v":0},{"$f":"SUM(I39,L39:M39,Q39:V39,AB39:AC39)","v":0},{"$f":"IF(H39=\"STOP\",0,AD39+AE38-AF38)","v":0},{"$f":"MIN(AE39,P39)","v":0},{"$f":"P39-AF39","v":0},{"$f":"(IFERROR(VLOOKUP(K39,$B$80:$C$84,2,TRUE),0)+0.7*(($D$39-100)/$D$39)*(1-IFERROR(VLOOKUP(K39,$B$80:$C$84,2,TRUE),0)))*AG39","v":0},{"$f":"AG39-AH39","v":0},{"$f":"SUM(O39,Q39:V39,L39:M39,AB39:AC39)","v":0},{"$f":"IF(H39=\"STOP\",0,N39-AJ39+AL38)","v":0},{"$f":"IF(AK39<0,AK39,0)","v":0},{"$f":"IF(AND(AL39<0,H39=$F$11+$F$12-1),AL39,IF(AK39>0,AK39*$C$64,0))","v":0},{"$f":"SUM(AF39,AI39)-SUM(I39:J39,L39:M39,AB39,Q39:V39,AM39)","v":0},{"$f":"IF(N39>0,N39-AN39,0)","v":0},{"$f":"IF(H39=\"STOP\",0,AN39/(1+$C$65)^($H39-$F$11))","v":0},{"$f":"IF(H39=\"STOP\",0,AO39/(1+$C$65)^($H39-$F$11))","v":0},null,31,0.10778994281234311,-1425.021717228331,null,null,"CashFlow"]
[null,null,null,null,null,null,null,{"$f":"IF(COUNT(H$10:H39)<$F$12,H39+1,\"STOP\")","v":"STOP"},0,0,0,0,0,0,0,0,0,0,0,null,0,0,0,{"$f":"IF(H40=\"STOP\",0,SUM(W$10:W40))","v":0},0,"STOP",{"$f":"IF(SUM(Y$10:Y40)<1,1,IF(Y40=1,1,0))","v":0},0,0,0,0,0,0,0,0,0,0,0,0,0,0,0,0,null,32,-0.10010018489405548,-242.42394722985188]
[null,null,null,null,null,null,null,{"$f":"IF(COUNT(H$10:H40)<$F$12,H40+1,\"STOP\")","v":"STOP"},0,0,0,0,0,0,0,0,0,0,0,null,0,0,0,{"$f":"IF(H41=\"STOP\",0,SUM(W$10:W41))","v":0},0,"STOP",{"$f":"IF(SUM(Y$10:Y41)<1,1,IF(Y41=1,1,0))","v":0},0,0,0,0,0,0,0,0,0,0,0,0,0,0,0,0,null,33,9.5634933843437908E-2,565.10067617561083]
["Fiscal Terms",null,null,null,null,null,null,{"$f":"IF(COUNT(H$10:H41)<$F$12,H41+1,\"STOP\")","v":"STOP"},0,0,0,0,0,0,0,0,0,0,0,null,0,0,0,{"$f":"IF(H42=\"STOP\",0,SUM(W$10:W42))","v":0},0,"STOP",{"$f":"IF(SUM(Y$10:Y42)<1,1,IF(Y42=1,1,0))","v":0},0,0,0,0,0,0,0,0,0,0,0,0,0,0,0,0,null,34,-9.4369917417504112E-2,-4020.0438916325415]
[null,null,null,null,null,null,null,{"$f":"IF(COUNT(H$10:H42)<$F$12,H42+1,\"STOP\")","v":"STOP"},0,0,0,0,0,0,0,0,0,0,0,null,0,0,0,{"$f":"IF(H43=\"STOP\",0,SUM(W$10:W43))","v":0},0,"STOP",{"$f":"IF(SUM(Y$10:Y43)<1,1,IF(Y43=1,1,0))","v":0},0,0,0,0,0,0,0,0,0,0,0,0,0,0,0,0,null,35,-0.10600051419007683,-689.98691065396804]
["royalty rate",null,null,0,null,null,null,{"$f":"IF(COUNT(H$10:H43)<$F$12,H43+1,\"STOP\")","v":"STOP"},0,0,0,0,0,0,0,0,0,0,0,null,0,0,0,{"$f":"IF(H44=\"STOP\",0,SUM(W$10:W44))","v":0},0,"STOP",{"$f":"IF(SUM(Y$10:Y44)<1,1,IF(Y44=1,1,0))","v":0},0,0,0,0,0,0,0,0,0,0,0,0,0,0,0,0,null,36,0.11355697087931926,-66.414641030924969]
[null,null,null,null,null,null,null,{"$f":"IF(COUNT(H$10:H44)<$F$12,H44+1,\"STOP\")","v":"STOP"},0,0,0,0,0,0,0,0,0,0,0,null,0,0,0,{"$f":"IF(H45=\"STOP\",0,SUM(W$10:W45))","v":0},0,"STOP",{"$f":"IF(SUM(Y$10:Y45)<1,1,IF(Y45=1,1,0))","v":0},0,0,0,0,0,0,0,0,0,0,0,0,0,0,0,0,null,37,0.11153326352052684,-305.50438659169743]
["License Fees",null,null,null,null,null,null,{"$f":"IF(COUNT(H$10:H45)<$F$12,H45+1,\"STOP\")","v":"STOP"},0,0,0,0,0,0,0,0,0,0,0,null,0,0,0,{"$f":"IF(H46=\"STOP\",0,SUM(W$10:W46))","v":0},0,"STOP",{"$f":"IF(SUM(Y$10:Y46)<1,1,IF(Y46=1,1,0))","v":0},0,0,0,0,0,0,0,0,0,0,0,0,0,0,0,0,null,38,0,-95.820274415545015]
[null,null,null,null,null,null,null,{"$f":"IF(COUNT(H$10:H46)<$F$12,H46+1,\"STOP\")","v":"STOP"},0,0,0,0,0,0,0,0,0,0,0,null,0,0,0,{"$f":"IF(H47=\"STOP\",0,SUM(W$10:W47))","v":0},0,"STOP",{"$f":"IF(SUM(Y$10:Y47)<1,1,IF(Y47=1,1,0))","v":0},0,0,0,0,0,0,0,0,0,0,0,0,0,0,0,0,null,39,6.0183739258349078E-2,-912.80117506390206]
["prod_start_yr",{"$f":"F11+F23","v":2019},null,null,null,null,null,{"$f":"IF(COUNT(H$10:H47)<$F$12,H47+1,\"STOP\")","v":"STOP"},0,0,0,0,0,0,0,0,0,0,0,null,0,0,0,{"$f":"IF(H48=\"STOP\",0,SUM(W$10:W48))","v":0},0,"STOP",{"$f":"IF(SUM(Y$10:Y48)<1,1,IF(Y48=1,1,0))","v":0},0,0,0,0,0,0,0,0,0,0,0,0,0,0,0,0,null,40,0.11845619023570109,-495.45607751386791]
[1,5.5,null,null,null,null,null,{"$f":"IF(COUNT(H$10:H48)<$F$12,H48+1,\"STOP\")","v":"STOP"},0,0,0,0,0,0,0,0,0,0,0,null,0,0,0,{"$f":"IF(H49=\"STOP\",0,SUM(W$10:W49))","v":0},0,"STOP",{"$f":"IF(SUM(Y$10:Y49)<1,1,IF(Y49=1,1,0))","v":0},0,0,0,0,0,0,0,0,0,0,0,0,0,0,0,0,null,41,8.9909975298532174E-3,235.99998864197721]
[5,0.5,null,null,null,null,null,{"$f":"IF(COUNT(H$10:H49)<$F$12,H49+1,\"STOP\")","v":"STOP"},0,0,0,0,0,0,0,0,0,0,0,null,0,0,0,{"$f":"IF(H50=\"STOP\",0,SUM(W$10:W50))","v":0},0,"STOP",{"$f":"IF(SUM(Y$10:Y50)<1,1,IF(Y50=1,1,0))","v":0},0,0,0,0,0,0,0,0,0,0,0,0,0,0,0,0,null,42,-0.10584908274299565,-2958.0266740691909]
[100,0.06,null,null,null,null,null,{"$f":"IF(COUNT(H$10:H50)<$F$12,H50+1,\"STOP\")","v":"STOP"},0,0,0,0,0,0,0,0,0,0,0,null,0,0,0,{"$f":"IF(H51=\"STOP\",0,SUM(W$10:W51))","v":0},0,"STOP",{"$f":"IF(SUM(Y$10:Y51)<1,1,IF(Y51=1,1,0))","v":0},0,0,0,0,0,0,0,0,0,0,0,0,0,0,0,0,null,43,-4.6246154699116859E-2,-465.48701757689201]
[null,null,null,null,null,null,null,{"$f":"IF(COUNT(H$10:H51)<$F$12,H51+1,\"STOP\")","v":"STOP"},0,0,0,0,0,0,0,0,0,0,0,null,0,0,0,{"$f":"IF(H52=\"STOP\",0,SUM(W$10:W52))","v":0},0,"STOP",{"$f":"IF(SUM(Y$10:Y52)<1,1,IF(Y52=1,1,0))","v":0},0,0,0,0,0,0,0,0,0,0,0,0,0,0,0,0,null,44,0.12266799045383681,309.8422939710602]
["term","description","qty",null,null,null,null,{"$f":"IF(COUNT(H$10:H52)<$F$12,H52+1,\"STOP\")","v":"STOP"},0,0,0,0,0,0,0,0,0,0,0,null,0,0,0,{"$f":"IF(H53=\"STOP\",0,SUM(W$10:W53))","v":0},0,"STOP",{"$f":"IF(SUM(Y$10:Y53)<1,1,IF(Y53=1,1,0))","v":0},0,0,0,0,0,0,0,0,0,0,0,0,0,0,0,0,null,45,0.11965089779895888,-20641.859932927797]
["commercial discovery year",null,{"$f":"F11+F16","v":2022},null,null,null,null,{"$f":"IF(COUNT(H$10:H53)<$F$12,H53+1,\"STOP\")","v":"STOP"},0,0,0,0,0,0,0,0,0,0,0,null,0,0,0,{"$f":"IF(H54=\"STOP\",0,SUM(W$10:W54))","v":0},0,"STOP",{"$f":"IF(SUM(Y$10:Y54)<1,1,IF(Y54=1,1,0))","v":0},0,0,0,0,0,0,0,0,0,0,0,0,0,0,0,0,null,46,-0.10708679043570957,-399.4484130286765]
["increment rate",null,0.04,null,null,null,null,null,null,null,null,null,null,null,null,null,null,null,null,null,null,null,null,null,null,null,null,null,null,null,null,null,null,null,null,null,null,null,null,null,null,null,null,null,47,0.13131207394878208,-1182.7599363539111]
["initial charge","annual charge in year1 of licence (MM USD)",0.3,null,null,null,null,null,null,null,null,null,null,null,null,null,null,null,null,null,null,null,null,null,null,null,null,null,null,null,null,null,null,null,null,null,null,null,null,null,null,null,null,null,48,3.7942830032009933E-2,366.04008148570477]
["yr1 training fee","year 1 training fee",0.12,null,null,null,null,null,null,null,null,null,null,null,null,null,null,null,null,null,null,null,null,null,null,null,null,null,null,null,null,null,null,null,null,null,null,null,null,null,null,null,null,null,49,0.10663638464804326,-97.390812060523956]
["comd_yr1_fee",null,0.15,null,null,null,null,null,null,null,null,null,null,null,null,null,null,null,null,null,null,null,null,null,null,null,null,null,null,null,null,null,null,null,null,null,null,null,null,null,null,null,null,null,50,8.6314575772800328E-2,-6793.2784199916705]
["post-production training charge %","expressed as % of profit petroleum",2.5000000000000001E-3,null,null,null,null,null,null,null,null,null,null,null,null,null,null,null,null,null,null,null,null,null,null,null,null,null,null,null,null,null,null,null,null,null,null,null,null,null,null,null,null,null,51,5.7744166721965917E-2,-1309.3811362693486]
["tech_asst bonus","technical assistance yr 1 bonus",0.3,null,null,null,null,null,null,null,null,null,null,null,null,null,null,null,null,null,null,null,null,null,null,null,null,null,null,null,null,null,null,null,null,null,null,null,null,null,null,null,null,null,52,0.10896632938116613,-9893.9307047482616]
["scholarship_fee","yr 1 scholarship fees",0.1,null,null,null,null,null,null,null,null,null,null,null,null,null,null,null,null,null,null,null,null,null,null,null,null,null,null,null,null,null,null,null,null,null,null,null,null,null,null,null,null,null,53,0.1270469783982231,531.70707219343467]
["ABEX","cost/bbl",0.25,null,null,null,null,null,null,null,null,null,null,null,null,null,null,null,null,null,null,null,null,null,null,null,null,null,null,null,null,null,null,null,null,null,null,null,null,null,null,null,null,null,54,0,-62.770398175046807]
["sldep_period","sl depreciation period",5,null,null,null,null,null,null,null,null,null,null,null,null,null,null,null,null,null,null,null,null,null,null,null,null,null,null,null,null,null,null,null,null,null,null,null,null,null,null,null,null,null,55,9.7171635990188632E-3,-617.02323986017018]
["income tax rate",null,0.25,null,null,null,null,null,null,null,null,null,null,null,null,null,null,null,null,null,null,null,null,null,null,null,null,null,null,null,null,null,null,null,null,null,null,null,null,null,null,null,null,null,56,0.11758415662046917,-1057.3686317674924]
["discount rate",null,0.1,null,null,null,null,null,null,null,null,null,null,null,null,null,null,null,null,null,null,null,null,null,null,null,null,null,null,null,null,null,null,null,null,null,null,null,null,null,null,null,null,null,57,0.10107631395275385,-1168.5403844243874]
[null,null,null,null,null,null,null,null,null,null,null,null,null,null,null,null,null,null,null,null,null,null,null,null,null,null,null,null,null,null,null,null,null,null,null,null,null,null,null,null,null,null,null,null,58,2.0429942689964231E-2,236.34007498335157]
["Production Bonuses",null,null,null,null,null,null,null,null,null,null,null,null,null,null,null,null,null,null,null,null,null,null,null,null,null,null,null,null,null,null,null,null,null,null,null,null,null,null,null,null,null,null,null,59,-6.6628207271464124E-3,-648.38622331008389]
[null,null,null,null,null,null,null,null,null,null,null,null,null,null,null,null,null,null,null,null,null,null,null,null,null,null,null,null,null,null,null,null,null,null,null,null,null,null,null,null,null,null,null,null,60,0.13339593627565405,-4999.4043285262505]
["000BPD","MMUSD",null,null,null,null,null,null,null,null,null,null,null,null,null,null,null,null,null,null,null,null,null,null,null,null,null,null,null,null,null,null,null,null,null,null,null,null,null,null,null,null,null,null,61,8.5733637524513906E-2,923.68144784381207]
[25000,1.5,null,null,null,null,null,null,null,null,null,null,null,null,null,null,null,null,null,null,null,null,null,null,null,null,null,null,null,null,null,null,null,null,null,null,null,null,null,null,null,null,null,null,62,-8.0192792521267764E-2,392.86741523383557]
[50000,2,null,null,null,null,null,null,null,null,null,null,null,null,null,null,null,null,null,null,null,null,null,null,null,null,null,null,null,null,null,null,null,null,null,null,null,null,null,null,null,null,null,null,63,3.6733718640104107E-2,59.537129741479049]
[75000,3,null,null,null,null,null,null,null,null,null,null,null,null,null,null,null,null,null,null,null,null,null,null,null,null,null,null,null,null,null,null,null,null,null,null,null,null,null,null,null,null,null,null,64,3.4870622907179349E-3,-5241.3057992661834]
[100000,4,null,null,null,null,null,null,null,null,null,null,null,null,null,null,null,null,null,null,null,null,null,null,null,null,null,null,null,null,null,null,null,null,null,null,null,null,null,null,null,null,null,null,65,8.3481438601400892E-2,858.1195340724297]
[150000,1,null,null,null,null,null,null,null,null,null,null,null,null,null,null,null,null,null,null,null,null,null,null,null,null,null,null,null,null,null,null,null,null,null,null,null,null,null,null,null,null,null,null,66,4.5330442706048579E-5,-201.89989457476344]
[null,null,null,null,null,null,null,null,null,null,null,null,null,null,null,null,null,null,null,null,null,null,null,null,null,null,null,null,null,null,null,null,null,null,null,null,null,null,null,null,null,null,null,null,67,0.1103413130195019,-917.14210415545006]
[null,null,null,null,null,null,null,null,null,null,null,null,null,null,null,null,null,null,null,null,null,null,null,null,null,null,null,null,null,null,null,null,null,null,null,null,null,null,null,null,null,null,null,null,68,0.13308053882716686,531.82040075958798]
["Government Take",null,null,null,null,null,null,null,null,null,null,null,null,null,null,null,null,null,null,null,null,null,null,null,null,null,null,null,null,null,null,null,null,null,null,null,null,null,null,null,null,null,null,null,69,6.7415712831859098E-2,-1024.1520797467001]
[null,null,null,null,null,null,null,null,null,null,null,null,null,null,null,null,null,null,null,null,null,null,null,null,null,null,null,null,null,null,null,null,null,null,null,null,null,null,null,null,null,null,null,null,70,0.14012373140148182,-918.55043717318858]
["Product","Production '000bpd","BR",null,null,null,null,null,null,null,null,null,null,null,null,null,null,null,null,null,null,null,null,null,null,null,null,null,null,null,null,null,null,null,null,null,null,null,null,null,null,null,null,null,71,4.1570408207873388E-2,-3243.9562559056885]
["oil",10,0.57999999999999996,null,null,null,null,null,null,null,null,null,null,null,null,null,null,null,null,null,null,null,null,null,null,null,null,null,null,null,null,null,null,null,null,null,null,null,null,null,null,null,null,null,72,3.8522146903928967E-2,240.03552098104208]
["oil",75000,0.6,null,null,null,null,null,null,null,null,null,null,null,null,null,null,null,null,null,null,null,null,null,null,null,null,null,null,null,null,null,null,null,null,null,null,null,null,null,null,null,null,null,73,0,-390.84809205680688]
["oil",100000,0.78,null,null,null,null,null,null,null,null,null,null,null,null,null,null,null,null,null,null,null,null,null,null,null,null,null,null,null,null,null,null,null,null,null,null,null,null,null,null,null,null,null,74,0.11212409708395499,438.83723927229636]
["oil",150000,0.8,null,null,null,null,null,null,null,null,null,null,null,null,null,null,null,null,null,null,null,null,null,null,null,null,null,null,null,null,null,null,null,null,null,null,null,null,null,null,null,null,null,75,0.10097921878521432,-178.41041692775116]
["oil",200000,0.85,null,null,null,null,null,null,null,null,null,null,null,null,null,null,null,null,null,null,null,null,null,null,null,null,null,null,null,null,null,null,null,null,null,null,null,null,null,null,null,null,null,76,9.1952542381387947E-2,1433.7823950593047]
["gas",0,"?",null,null,null,null,null,null,null,null,null,null,null,null,null,null,null,null,null,null,null,null,null,null,null,null,null,null,null,null,null,null,null,null,null,null,null,null,null,null,null,null,null,77,0.10587616265891375,-742.52977327724579]
["gas",200000,"?",null,null,null,null,null,null,null,null,null,null,null,null,null,null,null,null,null,null,null,null,null,null,null,null,null,null,null,null,null,null,null,null,null,null,null,null,null,null,null,null,null,78,2.3819306087308534E-2,1099.5389315010084]
["gas",350000,"?",null,null,null,null,null,null,null,null,null,null,null,null,null,null,null,null,null,null,null,null,null,null,null,null,null,null,null,null,null,null,null,null,null,null,null,null,null,null,null,null,null,79,0.10320150545612405,1574.6563163215901]
["gas",500000,"?",null,null,null,null,null,null,null,null,null,null,null,null,null,null,null,null,null,null,null,null,null,null,null,null,null,null,null,null,null,null,null,null,null,null,null,null,null,null,null,null,null,80,1.0724389730324191E-2,-2158.4931736872277]
["gas",750000,"?",null,null,null,null,null,null,null,null,null,null,null,null,null,null,null,null,null,null,null,null,null,null,null,null,null,null,null,null,null,null,null,null,null,null,null,null,null,null,null,null,null,81,-3.4059454640058995E-2,23.796763615568135]
["gas",1000000,"?",null,null,null,null,null,null,null,null,null,null,null,null,null,null,null,null,null,null,null,null,null,null,null,null,null,null,null,null,null,null,null,null,null,null,null,null,null,null,null,null,null,82,0.13856050421043953,-265.37108549794181]
[null,null,null,null,null,null,null,null,null,null,null,null,null,null,null,null,null,null,null,null,null,null,null,null,null,null,null,null,null,null,null,null,null,null,null,null,null,null,null,null,null,null,null,null,83,0.12917107313472964,271.23868850442341]
[null,null,null,null,null,null,null,null,null,null,null,null,null,null,null,null,null,null,null,null,null,null,null,null,null,null,null,null,null,null,null,null,null,null,null,null,null,null,null,null,null,null,null,null,84,0.10627678872948632,-309.52713362326494]
[null,null,null,null,null,null,null,null,null,null,null,null,null,null,null,null,null,null,null,null,null,null,null,null,null,null,null,null,null,null,null,null,null,null,null,null,null,null,null,null,null,null,null,null,85,8.5431025932625193E-3,223.43615384591945]
[null,null,null,null,null,null,null,null,null,null,null,null,null,null,null,null,null,null,null,null,null,null,null,null,null,null,null,null,null,null,null,null,null,null,null,null,null,null,null,null,null,null,null,null,86,-2.0003803064218673E-2,613.26962590314452]
[null,null,null,null,null,null,null,null,null,null,null,null,null,null,null,null,null,null,null,null,null,null,null,null,null,null,null,null,null,null,null,null,null,null,null,null,null,null,null,null,null,null,null,null,87,0.13393868614335913,880.45881811319964]
[null,null,null,null,null,null,null,null,null,null,null,null,null,null,null,null,null,null,null,null,null,null,null,null,null,null,null,null,null,null,null,null,null,null,null,null,null,null,null,null,null,null,null,null,88,0.1106699708784129,-12073.836716820782]
[null,null,null,null,null,null,null,null,null,null,null,null,null,null,null,null,null,null,null,null,null,null,null,null,null,null,null,null,null,null,null,null,null,null,null,null,null,null,null,null,null,null,null,null,89,0.12447931759218034,-12478.249434128085]
[null,null,null,null,null,null,null,null,null,null,null,null,null,null,null,null,null,null,null,null,null,null,null,null,null,null,null,null,null,null,null,null,null,null,null,null,null,null,null,null,null,null,null,null,90,-3.9968028886505635E-15,-228.71301639765858]
[null,null,null,null,null,null,null,null,null,null,null,null,null,null,null,null,null,null,null,null,null,null,null,null,null,null,null,null,null,null,null,null,null,null,null,null,null,null,null,null,null,null,null,null,91,-0.10457023186601999,-13929.328365864116]
[null,null,null,null,null,null,null,null,null,null,null,null,null,null,null,null,null,null,null,null,null,null,null,null,null,null,null,null,null,null,null,null,null,null,null,null,null,null,null,null,null,null,null,null,92,-2.03526103635705E-2,-515.2456673434441]
[null,null,null,null,null,null,null,null,null,null,null,null,null,null,null,null,null,null,null,null,null,null,null,null,null,null,null,null,null,null,null,null,null,null,null,null,null,null,null,null,null,null,null,null,93,9.3306562292180262E-3,-413.63568403224326]
[null,null,null,null,null,null,null,null,null,null,null,null,null,null,null,null,null,null,null,null,null,null,null,null,null,null,null,null,null,null,null,null,null,null,null,null,null,null,null,null,null,null,null,null,94,0.13639662274149278,-3827.7364540480762]
[null,null,null,null,null,null,null,null,null,null,null,null,null,null,null,null,null,null,null,null,null,null,null,null,null,null,null,null,null,null,null,null,null,null,null,null,null,null,null,null,null,null,null,null,95,3.922503854663062E-2,-3377.7014881857299]
[null,null,null,null,null,null,null,null,null,null,null,null,null,null,null,null,null,null,null,null,null,null,null,null,null,null,null,null,null,null,null,null,null,null,null,null,null,null,null,null,null,null,null,null,96,0.13103603481211978,-1035.3308028232284]
[null,null,null,null,null,null,null,null,null,null,null,null,null,null,null,null,null,null,null,null,null,null,null,null,null,null,null,null,null,null,null,null,null,null,null,null,null,null,null,null,null,null,null,null,97,-9.8275107087046676E-2,-77.160231908718202]
[null,null,null,null,null,null,null,null,null,null,null,null,null,null,null,null,null,null,null,null,null,null,null,null,null,null,null,null,null,null,null,null,null,null,null,null,null,null,null,null,null,null,null,null,98,0.13780577614647294,-373.79959775425073]
[null,null,null,null,null,null,null,null,null,null,null,null,null,null,null,null,null,null,null,null,null,null,null,null,null,null,null,null,null,null,null,null,null,null,null,null,null,null,null,null,null,null,null,null,99,0.12862025076894901,-775.11704906812361]
[null,null,null,null,null,null,null,null,null,null,null,null,null,null,null,null,null,null,null,null,null,null,null,null,null,null,null,null,null,null,null,null,null,null,null,null,null,null,null,null,null,null,null,null,100,1.9689144414566262E-2,-1043.4500804583822]
[null,null,null,null,null,null,null,null,null,null,null,null,null,null,null,null,null,null,null,null,null,null,null,null,null,null,null,null,null,null,null,null,null,null,null,null,null,null,null,null,null,null,null,null,101,0.11236417356601947,-535.88585485645399]
[null,null,null,null,null,null,null,null,null,null,null,null,null,null,null,null,null,null,null,null,null,null,null,null,null,null,null,null,null,null,null,null,null,null,null,null,null,null,null,null,null,null,null,null,102,-9.5956686330379126E-2,-3851.9196680286173]
[null,null,null,null,null,null,null,null,null,null,null,null,null,null,null,null,null,null,null,null,null,null,null,null,null,null,null,null,null,null,null,null,null,null,null,null,null,null,null,null,null,null,null,null,103,0.13140958986505735,-4087.2875960311885]
[null,null,null,null,null,null,null,null,null,null,null,null,null,null,null,null,null,null,null,null,null,null,null,null,null,null,null,null,null,null,null,null,null,null,null,null,null,null,null,null,null,null,null,null,104,0.12348575536508755,-3435.7891668843013]
[null,null,null,null,null,null,null,null,null,null,null,null,null,null,null,null,null,null,null,null,null,null,null,null,null,null,null,null,null,null,null,null,null,null,null,null,null,null,null,null,null,null,null,null,105,0.1252765645662548,-9954.859169606063]
[null,null,null,null,null,null,null,null,null,null,null,null,null,null,null,null,null,null,null,null,null,null,null,null,null,null,null,null,null,null,null,null,null,null,null,null,null,null,null,null,null,null,null,null,106,0.12253847574372212,-239.79220229243191]
[null,null,null,null,null,null,null,null,null,null,null,null,null,null,null,null,null,null,null,null,null,null,null,null,null,null,null,null,null,null,null,null,null,null,null,null,null,null,null,null,null,null,null,null,107,0.13029054315108324,-1929.6531582479752]
[null,null,null,null,null,null,null,null,null,null,null,null,null,null,null,null,null,null,null,null,null,null,null,null,null,null,null,null,null,null,null,null,null,null,null,null,null,null,null,null,null,null,null,null,108,0.13984418349994188,293.70386367057949]
[null,null,null,null,null,null,null,null,null,null,null,null,null,null,null,null,null,null,null,null,null,null,null,null,null,null,null,null,null,null,null,null,null,null,null,null,null,null,null,null,null,null,null,null,109,0.11499887266362308,-474.17015193464744]
[null,null,null,null,null,null,null,null,null,null,null,null,null,null,null,null,null,null,null,null,null,null,null,null,null,null,null,null,null,null,null,null,null,null,null,null,null,null,null,null,null,null,null,null,110,0.12377082746934243,-1242.1039209723078]
[null,null,null,null,null,null,null,null,null,null,null,null,null,null,null,null,null,null,null,null,null,null,null,null,null,null,null,null,null,null,null,null,null,null,null,null,null,null,null,null,null,null,null,null,111,0.13631714768519954,43.111536376714056]
[null,null,null,null,null,null,null,null,null,null,null,null,null,null,null,null,null,null,null,null,null,null,null,null,null,null,null,null,null,null,null,null,null,null,null,null,null,null,null,null,null,null,null,null,112,0.13728829357362893,1134.6000587203378]
[null,null,null,null,null,null,null,null,null,null,null,null,null,null,null,null,null,null,null,null,null,null,null,null,null,null,null,null,null,null,null,null,null,null,null,null,null,null,null,null,null,null,null,null,113,-9.4243884563157687E-2,-1395.1473983915346]
[null,null,null,null,null,null,null,null,null,null,null,null,null,null,null,null,null,null,null,null,null,null,null,null,null,null,null,null,null,null,null,null,null,null,null,null,null,null,null,null,null,null,null,null,114,3.8133193746313854E-2,212.75117659075312]
[null,null,null,null,null,null,null,null,null,null,null,null,null,null,null,null,null,null,null,null,null,null,null,null,null,null,null,null,null,null,null,null,null,null,null,null,null,null,null,null,null,null,null,null,115,-4.0653334922310824E-2,-15796.279672508119]
[null,null,null,null,null,null,null,null,null,null,null,null,null,null,null,null,null,null,null,null,null,null,null,null,null,null,null,null,null,null,null,null,null,null,null,null,null,null,null,null,null,null,null,null,116,0.10659324042112051,-588.44754076515005]
[null,null,null,null,null,null,null,null,null,null,null,null,null,null,null,null,null,null,null,null,null,null,null,null,null,null,null,null,null,null,null,null,null,null,null,null,null,null,null,null,null,null,null,null,117,-2.2516898466453661E-3,1148.2872573039331]
[null,null,null,null,null,null,null,null,null,null,null,null,null,null,null,null,null,null,null,null,null,null,null,null,null,null,null,null,null,null,null,null,null,null,null,null,null,null,null,null,null,null,null,null,118,0.12295992246508392,-2196.2215488670131]
[null,null,null,null,null,null,null,null,null,null,null,null,null,null,null,null,null,null,null,null,null,null,null,null,null,null,null,null,null,null,null,null,null,null,null,null,null,null,null,null,null,null,null,null,119,8.4061881282199158E-2,190.48913997909079]
[null,null,null,null,null,null,null,null,null,null,null,null,null,null,null,null,null,null,null,null,null,null,null,null,null,null,null,null,null,null,null,null,null,null,null,null,null,null,null,null,null,null,null,null,120,0.10563046535082232,-19115.851762125396]
[null,null,null,null,null,null,null,null,null,null,null,null,null,null,null,null,null,null,null,null,null,null,null,null,null,null,null,null,null,null,null,null,null,null,null,null,null,null,null,null,null,null,null,null,121,0,-552.92943063050245]
[null,null,null,null,null,null,null,null,null,null,null,null,null,null,null,null,null,null,null,null,null,null,null,null,null,null,null,null,null,null,null,null,null,null,null,null,null,null,null,null,null,null,null,null,122,3.0338995682220982E-2,-959.58562024990761]
[null,null,null,null,null,null,null,null,null,null,null,null,null,null,null,null,null,null,null,null,null,null,null,null,null,null,null,null,null,null,null,null,null,null,null,null,null,null,null,null,null,null,null,null,123,0.1170064076240962,70.495062330050672]
[null,null,null,null,null,null,null,null,null,null,null,null,null,null,null,null,null,null,null,null,null,null,null,null,null,null,null,null,null,null,null,null,null,null,null,null,null,null,null,null,null,null,null,null,124,4.2132502786041859E-2,-536.82386148186163]
[null,null,null,null,null,null,null,null,null,null,null,null,null,null,null,null,null,null,null,null,null,null,null,null,null,null,null,null,null,null,null,null,null,null,null,null,null,null,null,null,null,null,null,null,125,4.1476884774333755E-2,-278.23035886596944]
[null,null,null,null,null,null,null,null,null,null,null,null,null,null,null,null,null,null,null,null,null,null,null,null,null,null,null,null,null,null,null,null,null,null,null,null,null,null,null,null,null,null,null,null,126,0.12584568618026115,-137.33109940700237]
[null,null,null,null,null,null,null,null,null,null,null,null,null,null,null,null,null,null,null,null,null,null,null,null,null,null,null,null,null,null,null,null,null,null,null,null,null,null,null,null,null,null,null,null,127,5.5391560205692469E-2,-4424.460939568402]
[null,null,null,null,null,null,null,null,null,null,null,null,null,null,null,null,null,null,null,null,null,null,null,null,null,null,null,null,null,null,null,null,null,null,null,null,null,null,null,null,null,null,null,null,128,5.0971154963024956E-2,-1911.3033951312432]
[null,null,null,null,null,null,null,null,null,null,null,null,null,null,null,null,null,null,null,null,null,null,null,null,null,null,null,null,null,null,null,null,null,null,null,null,null,null,null,null,null,null,null,null,129,0.13425324030050945,880.24089136223108]
[null,null,null,null,null,null,null,null,null,null,null,null,null,null,null,null,null,null,null,null,null,null,null,null,null,null,null,null,null,null,null,null,null,null,null,null,null,null,null,null,null,null,null,null,130,0.13135198144234406,-23108.644703319947]
[null,null,null,null,null,null,null,null,null,null,null,null,null,null,null,null,null,null,null,null,null,null,null,null,null,null,null,null,null,null,null,null,null,null,null,null,null,null,null,null,null,null,null,null,131,0.13643563500125977,424.61600832882874]
[null,null,null,null,null,null,null,null,null,null,null,null,null,null,null,null,null,null,null,null,null,null,null,null,null,null,null,null,null,null,null,null,null,null,null,null,null,null,null,null,null,null,null,null,132,0.12832750454241004,219.01177200207815]
[null,null,null,null,null,null,null,null,null,null,null,null,null,null,null,null,null,null,null,null,null,null,null,null,null,null,null,null,null,null,null,null,null,null,null,null,null,null,null,null,null,null,null,null,133,-0.10704283684021054,526.12298253115057]
[null,null,null,null,null,null,null,null,null,null,null,null,null,null,null,null,null,null,null,null,null,null,null,null,null,null,null,null,null,null,null,null,null,null,null,null,null,null,null,null,null,null,null,null,134,-0.1050013462400472,215.23668071996985]
[null,null,null,null,null,null,null,null,null,null,null,null,null,null,null,null,null,null,null,null,null,null,null,null,null,null,null,null,null,null,null,null,null,null,null,null,null,null,null,null,null,null,null,null,135,0.13711737704207416,-808.70549490370638]
[null,null,null,null,null,null,null,null,null,null,null,null,null,null,null,null,null,null,null,null,null,null,null,null,null,null,null,null,null,null,null,null,null,null,null,null,null,null,null,null,null,null,null,null,136,1.9680144630476182E-3,-4104.6730267317371]
[null,null,null,null,null,null,null,null,null,null,null,null,null,null,null,null,null,null,null,null,null,null,null,null,null,null,null,null,null,null,null,null,null,null,null,null,null,null,null,null,null,null,null,null,137,-1.3547704895347179E-2,255.74210109410748]
[null,null,null,null,null,null,null,null,null,null,null,null,null,null,null,null,null,null,null,null,null,null,null,null,null,null,null,null,null,null,null,null,null,null,null,null,null,null,null,null,null,null,null,null,138,0.11536353531535359,-15760.898795418969]
[null,null,null,null,null,null,null,null,null,null,null,null,null,null,null,null,null,null,null,null,null,null,null,null,null,null,null,null,null,null,null,null,null,null,null,null,null,null,null,null,null,null,null,null,139,0.13096362866479605,-22267.122129170035]
[null,null,null,null,null,null,null,null,null,null,null,null,null,null,null,null,null,null,null,null,null,null,null,null,null,null,null,null,null,null,null,null,null,null,null,null,null,null,null,null,null,null,null,null,140,0.10026283555307836,-784.14484755435399]
[null,null,null,null,null,null,null,null,null,null,null,null,null,null,null,null,null,null,null,null,null,null,null,null,null,null,null,null,null,null,null,null,null,null,null,null,null,null,null,null,null,null,null,null,141,0.13277921847773311,-13009.370481481479]
[null,null,null,null,null,null,null,null,null,null,null,null,null,null,null,null,null,null,null,null,null,null,null,null,null,null,null,null,null,null,null,null,null,null,null,null,null,null,null,null,null,null,null,null,142,-7.4860072581214965E-2,1691.4704070270527]
[null,null,null,null,null,null,null,null,null,null,null,null,null,null,null,null,null,null,null,null,null,null,null,null,null,null,null,null,null,null,null,null,null,null,null,null,null,null,null,null,null,null,null,null,143,8.5855976143589641E-2,-833.69762234300265]
[null,null,null,null,null,null,null,null,null,null,null,null,null,null,null,null,null,null,null,null,null,null,null,null,null,null,null,null,null,null,null,null,null,null,null,null,null,null,null,null,null,null,null,null,144,0.1331468393558457,-6659.4274450236398]
[null,null,null,null,null,null,null,null,null,null,null,null,null,null,null,null,null,null,null,null,null,null,null,null,null,null,null,null,null,null,null,null,null,null,null,null,null,null,null,null,null,null,null,null,145,-3.5952802884996027E-2,-7033.2514333020827]
[null,null,null,null,null,null,null,null,null,null,null,null,null,null,null,null,null,null,null,null,null,null,null,null,null,null,null,null,null,null,null,null,null,null,null,null,null,null,null,null,null,null,null,null,146,-0.10526582437357601,-306.54285907871565]
[null,null,null,null,null,null,null,null,null,null,null,null,null,null,null,null,null,null,null,null,null,null,null,null,null,null,null,null,null,null,null,null,null,null,null,null,null,null,null,null,null,null,null,null,147,-7.2370749612277629E-2,61.728141340917205]
[null,null,null,null,null,null,null,null,null,null,null,null,null,null,null,null,null,null,null,null,null,null,null,null,null,null,null,null,null,null,null,null,null,null,null,null,null,null,null,null,null,null,null,null,148,-7.2666725763689266E-2,-1399.2815965631164]
[null,null,null,null,null,null,null,null,null,null,null,null,null,null,null,null,null,null,null,null,null,null,null,null,null,null,null,null,null,null,null,null,null,null,null,null,null,null,null,null,null,null,null,null,149,0.12410187424166308,-7242.736934944639]
[null,null,null,null,null,null,null,null,null,null,null,null,null,null,null,null,null,null,null,null,null,null,null,null,null,null,null,null,null,null,null,null,null,null,null,null,null,null,null,null,null,null,null,null,150,0.12208167960731342,1168.9226590713888]
[null,null,null,null,null,null,null,null,null,null,null,null,null,null,null,null,null,null,null,null,null,null,null,null,null,null,null,null,null,null,null,null,null,null,null,null,null,null,null,null,null,null,null,null,151,3.4628880975047904E-2,-5403.1382266471574]
[null,null,null,null,null,null,null,null,null,null,null,null,null,null,null,null,null,null,null,null,null,null,null,null,null,null,null,null,null,null,null,null,null,null,null,null,null,null,null,null,null,null,null,null,152,0.13938910730520682,-4513.6717140100109]
[null,null,null,null,null,null,null,null,null,null,null,null,null,null,null,null,null,null,null,null,null,null,null,null,null,null,null,null,null,null,null,null,null,null,null,null,null,null,null,null,null,null,null,null,153,0.11431915064002518,-394.70734466488773]
[null,null,null,null,null,null,null,null,null,null,null,null,null,null,null,null,null,null,null,null,null,null,null,null,null,null,null,null,null,null,null,null,null,null,null,null,null,null,null,null,null,null,null,null,154,0.1313827832542519,-989.00026051399084]
[null,null,null,null,null,null,null,null,null,null,null,null,null,null,null,null,null,null,null,null,null,null,null,null,null,null,null,null,null,null,null,null,null,null,null,null,null,null,null,null,null,null,null,null,155,0.13649947931583595,-99.78556751193868]
[null,null,null,null,null,null,null,null,null,null,null,null,null,null,null,null,null,null,null,null,null,null,null,null,null,null,null,null,null,null,null,null,null,null,null,null,null,null,null,null,null,null,null,null,156,1.3266524649328315E-2,-15802.791611407183]
[null,null,null,null,null,null,null,null,null,null,null,null,null,null,null,null,null,null,null,null,null,null,null,null,null,null,null,null,null,null,null,null,null,null,null,null,null,null,null,null,null,null,null,null,157,1.7947513218626421E-2,-7469.3044196473948]
[null,null,null,null,null,null,null,null,null,null,null,null,null,null,null,null,null,null,null,null,null,null,null,null,null,null,null,null,null,null,null,null,null,null,null,null,null,null,null,null,null,null,null,null,158,-1.8129287361605684E-2,-1434.2884044068851]
[null,null,null,null,null,null,null,null,null,null,null,null,null,null,null,null,null,null,null,null,null,null,null,null,null,null,null,null,null,null,null,null,null,null,null,null,null,null,null,null,null,null,null,null,159,0.11056236291907762,-3089.022531258508]
[null,null,null,null,null,null,null,null,null,null,null,null,null,null,null,null,null,null,null,null,null,null,null,null,null,null,null,null,null,null,null,null,null,null,null,null,null,null,null,null,null,null,null,null,160,0.13280761546317998,-692.78844608524662]
[null,null,null,null,null,null,null,null,null,null,null,null,null,null,null,null,null,null,null,null,null,null,null,null,null,null,null,null,null,null,null,null,null,null,null,null,null,null,null,null,null,null,null,null,161,-3.8096358710287159E-2,-580.38708463119178]
[null,null,null,null,null,null,null,null,null,null,null,null,null,null,null,null,null,null,null,null,null,null,null,null,null,null,null,null,null,null,null,null,null,null,null,null,null,null,null,null,null,null,null,null,162,7.254875154161422E-2,-936.42286976821072]
[null,null,null,null,null,null,null,null,null,null,null,null,null,null,null,null,null,null,null,null,null,null,null,null,null,null,null,null,null,null,null,null,null,null,null,null,null,null,null,null,null,null,null,null,163,0,-567.24767108513356]
[null,null,null,null,null,null,null,null,null,null,null,null,null,null,null,null,null,null,null,null,null,null,null,null,null,null,null,null,null,null,null,null,null,null,null,null,null,null,null,null,null,null,null,null,164,8.9031315336692507E-2,-48.982514603322088]
[null,null,null,null,null,null,null,null,null,null,null,null,null,null,null,null,null,null,null,null,null,null,null,null,null,null,null,null,null,null,null,null,null,null,null,null,null,null,null,null,null,null,null,null,165,8.8362257395835475E-2,795.42150761381595]
[null,null,null,null,null,null,null,null,null,null,null,null,null,null,null,null,null,null,null,null,null,null,null,null,null,null,null,null,null,null,null,null,null,null,null,null,null,null,null,null,null,null,null,null,166,0.12423118169669534,-3374.1784729211681]
[null,null,null,null,null,null,null,null,null,null,null,null,null,null,null,null,null,null,null,null,null,null,null,null,null,null,null,null,null,null,null,null,null,null,null,null,null,null,null,null,null,null,null,null,167,0.1272229565762204,-4223.1573476126559]
[null,null,null,null,null,null,null,null,null,null,null,null,null,null,null,null,null,null,null,null,null,null,null,null,null,null,null,null,null,null,null,null,null,null,null,null,null,null,null,null,null,null,null,null,168,1.3992162607129099E-2,-259.72527922016633]
[null,null,null,null,null,null,null,null,null,null,null,null,null,null,null,null,null,null,null,null,null,null,null,null,null,null,null,null,null,null,null,null,null,null,null,null,null,null,null,null,null,null,null,null,169,7.8480314468957091E-2,655.93334890358756]
[null,null,null,null,null,null,null,null,null,null,null,null,null,null,null,null,null,null,null,null,null,null,null,null,null,null,null,null,null,null,null,null,null,null,null,null,null,null,null,null,null,null,null,null,170,0.10627089845043802,-9371.9483494119886]
[null,null,null,null,null,null,null,null,null,null,null,null,null,null,null,null,null,null,null,null,null,null,null,null,null,null,null,null,null,null,null,null,null,null,null,null,null,null,null,null,null,null,null,null,171,0.12602307922686518,-125.76843421940472]
[null,null,null,null,null,null,null,null,null,null,null,null,null,null,null,null,null,null,null,null,null,null,null,null,null,null,null,null,null,null,null,null,null,null,null,null,null,null,null,null,null,null,null,null,172,8.265157381389554E-3,-533.75436370729062]
[null,null,null,null,null,null,null,null,null,null,null,null,null,null,null,null,null,null,null,null,null,null,null,null,null,null,null,null,null,null,null,null,null,null,null,null,null,null,null,null,null,null,null,null,173,0.11150092110069409,-11520.672467488417]
[null,null,null,null,null,null,null,null,null,null,null,null,null,null,null,null,null,null,null,null,null,null,null,null,null,null,null,null,null,null,null,null,null,null,null,null,null,null,null,null,null,null,null,null,174,0.115673294920565,1282.4629964863907]
[null,null,null,null,null,null,null,null,null,null,null,null,null,null,null,null,null,null,null,null,null,null,null,null,null,null,null,null,null,null,null,null,null,null,null,null,null,null,null,null,null,null,null,null,175,8.8803750178251151E-2,-3910.0542145580976]
[null,null,null,null,null,null,null,null,null,null,null,null,null,null,null,null,null,null,null,null,null,null,null,null,null,null,null,null,null,null,null,null,null,null,null,null,null,null,null,null,null,null,null,null,176,-8.5194824917997458E-2,-1926.5578508592437]
[null,null,null,null,null,null,null,null,null,null,null,null,null,null,null,null,null,null,null,null,null,null,null,null,null,null,null,null,null,null,null,null,null,null,null,null,null,null,null,null,null,null,null,null,177,8.8754856141190053E-2,82.584184482500191]
[null,null,null,null,null,null,null,null,null,null,null,null,null,null,null,null,null,null,null,null,null,null,null,null,null,null,null,null,null,null,null,null,null,null,null,null,null,null,null,null,null,null,null,null,178,-1.1006739168549995E-2,633.92844526437761]
[null,null,null,null,null,null,null,null,null,null,null,null,null,null,null,null,null,null,null,null,null,null,null,null,null,null,null,null,null,null,null,null,null,null,null,null,null,null,null,null,null,null,null,null,179,-3.0868086675980733E-2,-3793.9401438683562]
[null,null,null,null,null,null,null,null,null,null,null,null,null,null,null,null,null,null,null,null,null,null,null,null,null,null,null,null,null,null,null,null,null,null,null,null,null,null,null,null,null,null,null,null,180,8.7469933233565111E-2,-4209.1281997343431]
[null,null,null,null,null,null,null,null,null,null,null,null,null,null,null,null,null,null,null,null,null,null,null,null,null,null,null,null,null,null,null,null,null,null,null,null,null,null,null,null,null,null,null,null,181,-1.5137754713798746E-2,-1236.0058756290475]
[null,null,null,null,null,null,null,null,null,null,null,null,null,null,null,null,null,null,null,null,null,null,null,null,null,null,null,null,null,null,null,null,null,null,null,null,null,null,null,null,null,null,null,null,182,0.13921960289719004,-1563.3237715456207]
[null,null,null,null,null,null,null,null,null,null,null,null,null,null,null,null,null,null,null,null,null,null,null,null,null,null,null,null,null,null,null,null,null,null,null,null,null,null,null,null,null,null,null,null,183,-0.10119910186801384,-2149.4407216938871]
[null,null,null,null,null,null,null,null,null,null,null,null,null,null,null,null,null,null,null,null,null,null,null,null,null,null,null,null,null,null,null,null,null,null,null,null,null,null,null,null,null,null,null,null,184,0.138556680233209,-10293.731445687026]
[null,null,null,null,null,null,null,null,null,null,null,null,null,null,null,null,null,null,null,null,null,null,null,null,null,null,null,null,null,null,null,null,null,null,null,null,null,null,null,null,null,null,null,null,185,-0.10539212365139816,-459.10650706053337]
[null,null,null,null,null,null,null,null,null,null,null,null,null,null,null,null,null,null,null,null,null,null,null,null,null,null,null,null,null,null,null,null,null,null,null,null,null,null,null,null,null,null,null,null,186,0.12088604826301108,-51.81020568892172]
[null,null,null,null,null,null,null,null,null,null,null,null,null,null,null,null,null,null,null,null,null,null,null,null,null,null,null,null,null,null,null,null,null,null,null,null,null,null,null,null,null,null,null,null,187,-0.10335510842103823,-63.808318044511054]
[null,null,null,null,null,null,null,null,null,null,null,null,null,null,null,null,null,null,null,null,null,null,null,null,null,null,null,null,null,null,null,null,null,null,null,null,null,null,null,null,null,null,null,null,188,-0.10172532116604449,-4529.1176006603091]
[null,null,null,null,null,null,null,null,null,null,null,null,null,null,null,null,null,null,null,null,null,null,null,null,null,null,null,null,null,null,null,null,null,null,null,null,null,null,null,null,null,null,null,null,189,-0.10667820462382926,-4770.1518862742132]
[null,null,null,null,null,null,null,null,null,null,null,null,null,null,null,null,null,null,null,null,null,null,null,null,null,null,null,null,null,null,null,null,null,null,null,null,null,null,null,null,null,null,null,null,190,-3.3661825578228832E-2,250.04299149593592]
[null,null,null,null,null,null,null,null,null,null,null,null,null,null,null,null,null,null,null,null,null,null,null,null,null,null,null,null,null,null,null,null,null,null,null,null,null,null,null,null,null,null,null,null,191,8.3561690597212412E-2,220.43665223357587]
[null,null,null,null,null,null,null,null,null,null,null,null,null,null,null,null,null,null,null,null,null,null,null,null,null,null,null,null,null,null,null,null,null,null,null,null,null,null,null,null,null,null,null,null,192,-0.10000487578685213,-141.24630144637371]
[null,null,null,null,null,null,null,null,null,null,null,null,null,null,null,null,null,null,null,null,null,null,null,null,null,null,null,null,null,null,null,null,null,null,null,null,null,null,null,null,null,null,null,null,193,7.1073642152176042E-2,174.12554388230546]
[null,null,null,null,null,null,null,null,null,null,null,null,null,null,null,null,null,null,null,null,null,null,null,null,null,null,null,null,null,null,null,null,null,null,null,null,null,null,null,null,null,null,null,null,194,9.086227463181562E-2,1669.9024500312121]
[null,null,null,null,null,null,null,null,null,null,null,null,null,null,null,null,null,null,null,null,null,null,null,null,null,null,null,null,null,null,null,null,null,null,null,null,null,null,null,null,null,null,null,null,195,6.7784258738815439E-2,387.62805055283548]
[null,null,null,null,null,null,null,null,null,null,null,null,null,null,null,null,null,null,null,null,null,null,null,null,null,null,null,null,null,null,null,null,null,null,null,null,null,null,null,null,null,null,null,null,196,0.10362679520852314,122.33086015830921]
[null,null,null,null,null,null,null,null,null,null,null,null,null,null,null,null,null,null,null,null,null,null,null,null,null,null,null,null,null,null,null,null,null,null,null,null,null,null,null,null,null,null,null,null,197,0.13596162852481386,-503.79240071492274]
[null,null,null,null,null,null,null,null,null,null,null,null,null,null,null,null,null,null,null,null,null,null,null,null,null,null,null,null,null,null,null,null,null,null,null,null,null,null,null,null,null,null,null,null,198,0,160.51602030814257]
[null,null,null,null,null,null,null,null,null,null,null,null,null,null,null,null,null,null,null,null,null,null,null,null,null,null,null,null,null,null,null,null,null,null,null,null,null,null,null,null,null,null,null,null,199,0.11346939880698292,-10535.025804040897]
[null,null,null,null,null,null,null,null,null,null,null,null,null,null,null,null,null,null,null,null,null,null,null,null,null,null,null,null,null,null,null,null,null,null,null,null,null,null,null,null,null,null,null,null,200,-8.2303462721373011E-2,-2031.0945853646715]
[null,null,null,null,null,null,null,null,null,null,null,null,null,null,null,null,null,null,null,null,null,null,null,null,null,null,null,null,null,null,null,null,null,null,null,null,null,null,null,null,null,null,null,null,201,9.2297423096448838E-2,-183.12788988461614]
[null,null,null,null,null,null,null,null,null,null,null,null,null,null,null,null,null,null,null,null,null,null,null,null,null,null,null,null,null,null,null,null,null,null,null,null,null,null,null,null,null,null,null,null,202,0.10524668605812249,450.73712103607039]
[null,null,null,null,null,null,null,null,null,null,null,null,null,null,null,null,null,null,null,null,null,null,null,null,null,null,null,null,null,null,null,null,null,null,null,null,null,null,null,null,null,null,null,null,203,0.13197235288120746,175.50797122049227]
[null,null,null,null,null,null,null,null,null,null,null,null,null,null,null,null,null,null,null,null,null,null,null,null,null,null,null,null,null,null,null,null,null,null,null,null,null,null,null,null,null,null,null,null,204,2.5490442322343765E-2,-997.55684148114813]
[null,null,null,null,null,null,null,null,null,null,null,null,null,null,null,null,null,null,null,null,null,null,null,null,null,null,null,null,null,null,null,null,null,null,null,null,null,null,null,null,null,null,null,null,205,-1.9936933622715536E-2,-420.90990404274271]
[null,null,null,null,null,null,null,null,null,null,null,null,null,null,null,null,null,null,null,null,null,null,null,null,null,null,null,null,null,null,null,null,null,null,null,null,null,null,null,null,null,null,null,null,206,0.13938076186052395,-408.79569271228763]
[null,null,null,null,null,null,null,null,null,null,null,null,null,null,null,null,null,null,null,null,null,null,null,null,null,null,null,null,null,null,null,null,null,null,null,null,null,null,null,null,null,null,null,null,207,0.13285851808130389,-1513.6408148306682]
[null,null,null,null,null,null,null,null,null,null,null,null,null,null,null,null,null,null,null,null,null,null,null,null,null,null,null,null,null,null,null,null,null,null,null,null,null,null,null,null,null,null,null,null,208,9.2423523029249499E-2,-1025.8604926160087]
[null,null,null,null,null,null,null,null,null,null,null,null,null,null,null,null,null,null,null,null,null,null,null,null,null,null,null,null,null,null,null,null,null,null,null,null,null,null,null,null,null,null,null,null,209,3.9122080440503693E-2,398.54528400531507]
[null,null,null,null,null,null,null,null,null,null,null,null,null,null,null,null,null,null,null,null,null,null,null,null,null,null,null,null,null,null,null,null,null,null,null,null,null,null,null,null,null,null,null,null,210,0.13087035202087371,-4182.4688238824347]
[null,null,null,null,null,null,null,null,null,null,null,null,null,null,null,null,null,null,null,null,null,null,null,null,null,null,null,null,null,null,null,null,null,null,null,null,null,null,null,null,null,null,null,null,211,0.12319089551573625,353.58827563599215]
[null,null,null,null,null,null,null,null,null,null,null,null,null,null,null,null,null,null,null,null,null,null,null,null,null,null,null,null,null,null,null,null,null,null,null,null,null,null,null,null,null,null,null,null,212,0.12954728393749726,290.43529262414734]
[null,null,null,null,null,null,null,null,null,null,null,null,null,null,null,null,null,null,null,null,null,null,null,null,null,null,null,null,null,null,null,null,null,null,null,null,null,null,null,null,null,null,null,null,213,1.9915499885903243E-2,-1321.1267664122001]
[null,null,null,null,null,null,null,null,null,null,null,null,null,null,null,null,null,null,null,null,null,null,null,null,null,null,null,null,null,null,null,null,null,null,null,null,null,null,null,null,null,null,null,null,214,7.754164809230002E-2,-10792.7205055586]
[null,null,null,null,null,null,null,null,null,null,null,null,null,null,null,null,null,null,null,null,null,null,null,null,null,null,null,null,null,null,null,null,null,null,null,null,null,null,null,null,null,null,null,null,215,7.2460160366466964E-2,-3241.196980342394]
[null,null,null,null,null,null,null,null,null,null,null,null,null,null,null,null,null,null,null,null,null,null,null,null,null,null,null,null,null,null,null,null,null,null,null,null,null,null,null,null,null,null,null,null,216,-9.7330156893368436E-2,-8658.7663273747112]
[null,null,null,null,null,null,null,null,null,null,null,null,null,null,null,null,null,null,null,null,null,null,null,null,null,null,null,null,null,null,null,null,null,null,null,null,null,null,null,null,null,null,null,null,217,-0.10069768305500859,-1084.9293388481917]
[null,null,null,null,null,null,null,null,null,null,null,null,null,null,null,null,null,null,null,null,null,null,null,null,null,null,null,null,null,null,null,null,null,null,null,null,null,null,null,null,null,null,null,null,218,0.1327862667688986,-4948.8038720128989]
[null,null,null,null,null,null,null,null,null,null,null,null,null,null,null,null,null,null,null,null,null,null,null,null,null,null,null,null,null,null,null,null,null,null,null,null,null,null,null,null,null,null,null,null,219,9.6445073799499959E-2,-1113.7797083304338]
[null,null,null,null,null,null,null,null,null,null,null,null,null,null,null,null,null,null,null,null,null,null,null,null,null,null,null,null,null,null,null,null,null,null,null,null,null,null,null,null,null,null,null,null,220,-3.1725024455712569E-2,-1196.2450497604307]
[null,null,null,null,null,null,null,null,null,null,null,null,null,null,null,null,null,null,null,null,null,null,null,null,null,null,null,null,null,null,null,null,null,null,null,null,null,null,null,null,null,null,null,null,221,0.12066516219553425,-8766.2309606194503]
[null,null,null,null,null,null,null,null,null,null,null,null,null,null,null,null,null,null,null,null,null,null,null,null,null,null,null,null,null,null,null,null,null,null,null,null,null,null,null,null,null,null,null,null,222,-8.2687322005343677E-2,-426.99775669001031]
[null,null,null,null,null,null,null,null,null,null,null,null,null,null,null,null,null,null,null,null,null,null,null,null,null,null,null,null,null,null,null,null,null,null,null,null,null,null,null,null,null,null,null,null,223,5.0179330089841434E-2,423.70023546313428]
[null,null,null,null,null,null,null,null,null,null,null,null,null,null,null,null,null,null,null,null,null,null,null,null,null,null,null,null,null,null,null,null,null,null,null,null,null,null,null,null,null,null,null,null,224,0.13052328476500008,209.18330212127009]
[null,null,null,null,null,null,null,null,null,null,null,null,null,null,null,null,null,null,null,null,null,null,null,null,null,null,null,null,null,null,null,null,null,null,null,null,null,null,null,null,null,null,null,null,225,4.2765121050365895E-2,-1671.3746293117747]
[null,null,null,null,null,null,null,null,null,null,null,null,null,null,null,null,null,null,null,null,null,null,null,null,null,null,null,null,null,null,null,null,null,null,null,null,null,null,null,null,null,null,null,null,226,1.9228809605283836E-2,-23442.916976989396]
[null,null,null,null,null,null,null,null,null,null,null,null,null,null,null,null,null,null,null,null,null,null,null,null,null,null,null,null,null,null,null,null,null,null,null,null,null,null,null,null,null,null,null,null,227,0.13774906221344252,-333.6991293890398]
[null,null,null,null,null,null,null,null,null,null,null,null,null,null,null,null,null,null,null,null,null,null,null,null,null,null,null,null,null,null,null,null,null,null,null,null,null,null,null,null,null,null,null,null,228,0,5.4440467969864841]
[null,null,null,null,null,null,null,null,null,null,null,null,null,null,null,null,null,null,null,null,null,null,null,null,null,null,null,null,null,null,null,null,null,null,null,null,null,null,null,null,null,null,null,null,229,-0.10628451258475091,-1987.5586618075363]
[null,null,null,null,null,null,null,null,null,null,null,null,null,null,null,null,null,null,null,null,null,null,null,null,null,null,null,null,null,null,null,null,null,null,null,null,null,null,null,null,null,null,null,null,230,0.12873759839431842,-2041.6505284664734]
[null,null,null,null,null,null,null,null,null,null,null,null,null,null,null,null,null,null,null,null,null,null,null,null,null,null,null,null,null,null,null,null,null,null,null,null,null,null,null,null,null,null,null,null,231,0.12430514318668084,-50.036692125865748]
[null,null,null,null,null,null,null,null,null,null,null,null,null,null,null,null,null,null,null,null,null,null,null,null,null,null,null,null,null,null,null,null,null,null,null,null,null,null,null,null,null,null,null,null,232,-9.8309427927217197E-2,54.256512321682663]
[null,null,null,null,null,null,null,null,null,null,null,null,null,null,null,null,null,null,null,null,null,null,null,null,null,null,null,null,null,null,null,null,null,null,null,null,null,null,null,null,null,null,null,null,233,-0.10741176466448032,-897.46077163065786]
[null,null,null,null,null,null,null,null,null,null,null,null,null,null,null,null,null,null,null,null,null,null,null,null,null,null,null,null,null,null,null,null,null,null,null,null,null,null,null,null,null,null,null,null,234,0.13563886176536799,-342.22023912366211]
[null,null,null,null,null,null,null,null,null,null,null,null,null,null,null,null,null,null,null,null,null,null,null,null,null,null,null,null,null,null,null,null,null,null,null,null,null,null,null,null,null,null,null,null,235,0.10420002004707807,39.502871653570523]
[null,null,null,null,null,null,null,null,null,null,null,null,null,null,null,null,null,null,null,null,null,null,null,null,null,null,null,null,null,null,null,null,null,null,null,null,null,null,null,null,null,null,null,null,236,0.12414309693876668,-933.74989591683413]
[null,null,null,null,null,null,null,null,null,null,null,null,null,null,null,null,null,null,null,null,null,null,null,null,null,null,null,null,null,null,null,null,null,null,null,null,null,null,null,null,null,null,null,null,237,0.10411572734976016,-1296.9811708545744]
[null,null,null,null,null,null,null,null,null,null,null,null,null,null,null,null,null,null,null,null,null,null,null,null,null,null,null,null,null,null,null,null,null,null,null,null,null,null,null,null,null,null,null,null,238,-8.6960093908000191E-2,0.45826164506415523]
[null,null,null,null,null,null,null,null,null,null,null,null,null,null,null,null,null,null,null,null,null,null,null,null,null,null,null,null,null,null,null,null,null,null,null,null,null,null,null,null,null,null,null,null,239,0,-1243.2267949072791]
[null,null,null,null,null,null,null,null,null,null,null,null,null,null,null,null,null,null,null,null,null,null,null,null,null,null,null,null,null,null,null,null,null,null,null,null,null,null,null,null,null,null,null,null,240,0,-22110.693977336308]
[null,null,null,null,null,null,null,null,null,null,null,null,null,null,null,null,null,null,null,null,null,null,null,null,null,null,null,null,null,null,null,null,null,null,null,null,null,null,null,null,null,null,null,null,241,0,-326.84814049939598]
[null,null,null,null,null,null,null,null,null,null,null,null,null,null,null,null,null,null,null,null,null,null,null,null,null,null,null,null,null,null,null,null,null,null,null,null,null,null,null,null,null,null,null,null,242,0.13181064404275256,-1213.9639227898592]
[null,null,null,null,null,null,null,null,null,null,null,null,null,null,null,null,null,null,null,null,null,null,null,null,null,null,null,null,null,null,null,null,null,null,null,null,null,null,null,null,null,null,null,null,243,-0.10466602548579718,1134.1461695844368]
[null,null,null,null,null,null,null,null,null,null,null,null,null,null,null,null,null,null,null,null,null,null,null,null,null,null,null,null,null,null,null,null,null,null,null,null,null,null,null,null,null,null,null,null,244,0.1325676294648761,-2744.0164543344627]
[null,null,null,null,null,null,null,null,null,null,null,null,null,null,null,null,null,null,null,null,null,null,null,null,null,null,null,null,null,null,null,null,null,null,null,null,null,null,null,null,null,null,null,null,245,0.12965717998960258,-9294.4125501329236]
[null,null,null,null,null,null,null,null,null,null,null,null,null,null,null,null,null,null,null,null,null,null,null,null,null,null,null,null,null,null,null,null,null,null,null,null,null,null,null,null,null,null,null,null,246,0.1023073322909398,-5780.4135744736122]
[null,null,null,null,null,null,null,null,null,null,null,null,null,null,null,null,null,null,null,null,null,null,null,null,null,null,null,null,null,null,null,null,null,null,null,null,null,null,null,null,null,null,null,null,247,-9.7535302992447948E-2,-2007.2974629466351]
[null,null,null,null,null,null,null,null,null,null,null,null,null,null,null,null,null,null,null,null,null,null,null,null,null,null,null,null,null,null,null,null,null,null,null,null,null,null,null,null,null,null,null,null,248,-8.4668992524073117E-2,-4789.0714545203136]
[null,null,null,null,null,null,null,null,null,null,null,null,null,null,null,null,null,null,null,null,null,null,null,null,null,null,null,null,null,null,null,null,null,null,null,null,null,null,null,null,null,null,null,null,249,0.13017022451552018,-5733.9823129635924]
[null,null,null,null,null,null,null,null,null,null,null,null,null,null,null,null,null,null,null,null,null,null,null,null,null,null,null,null,null,null,null,null,null,null,null,null,null,null,null,null,null,null,null,null,250,-2.5955702924245205E-3,-105.88430353720608]
[null,null,null,null,null,null,null,null,null,null,null,null,null,null,null,null,null,null,null,null,null,null,null,null,null,null,null,null,null,null,null,null,null,null,null,null,null,null,null,null,null,null,null,null,251,0.12900998424879362,-927.37314388363745]
[null,null,null,null,null,null,null,null,null,null,null,null,null,null,null,null,null,null,null,null,null,null,null,null,null,null,null,null,null,null,null,null,null,null,null,null,null,null,null,null,null,null,null,null,252,-1.807540683637554E-2,-1296.1183436198119]
[null,null,null,null,null,null,null,null,null,null,null,null,null,null,null,null,null,null,null,null,null,null,null,null,null,null,null,null,null,null,null,null,null,null,null,null,null,null,null,null,null,null,null,null,253,0.11286415413663919,229.41634056997836]
[null,null,null,null,null,null,null,null,null,null,null,null,null,null,null,null,null,null,null,null,null,null,null,null,null,null,null,null,null,null,null,null,null,null,null,null,null,null,null,null,null,null,null,null,254,-0.10696071169149635,659.0745152069743]
[null,null,null,null,null,null,null,null,null,null,null,null,null,null,null,null,null,null,null,null,null,null,null,null,null,null,null,null,null,null,null,null,null,null,null,null,null,null,null,null,null,null,null,null,255,-0.10504237081833745,-319.80763346135103]
[null,null,null,null,null,null,null,null,null,null,null,null,null,null,null,null,null,null,null,null,null,null,null,null,null,null,null,null,null,null,null,null,null,null,null,null,null,null,null,null,null,null,null,null,256,0.12156770382541782,65.248366518189812]
[null,null,null,null,null,null,null,null,null,null,null,null,null,null,null,null,null,null,null,null,null,null,null,null,null,null,null,null,null,null,null,null,null,null,null,null,null,null,null,null,null,null,null,null,257,7.0419359828364558E-2,-559.83707246246138]
[null,null,null,null,null,null,null,null,null,null,null,null,null,null,null,null,null,null,null,null,null,null,null,null,null,null,null,null,null,null,null,null,null,null,null,null,null,null,null,null,null,null,null,null,258,-0.10649542496416431,-138.69331585609564]
[null,null,null,null,null,null,null,null,null,null,null,null,null,null,null,null,null,null,null,null,null,null,null,null,null,null,null,null,null,null,null,null,null,null,null,null,null,null,null,null,null,null,null,null,259,0.12608442870610292,-749.8223324817709]
[null,null,null,null,null,null,null,null,null,null,null,null,null,null,null,null,null,null,null,null,null,null,null,null,null,null,null,null,null,null,null,null,null,null,null,null,null,null,null,null,null,null,null,null,260,0.13881303647604148,26.713550781983134]
[null,null,null,null,null,null,null,null,null,null,null,null,null,null,null,null,null,null,null,null,null,null,null,null,null,null,null,null,null,null,null,null,null,null,null,null,null,null,null,null,null,null,null,null,261,-0.10721429281063632,446.30654303692114]
[null,null,null,null,null,null,null,null,null,null,null,null,null,null,null,null,null,null,null,null,null,null,null,null,null,null,null,null,null,null,null,null,null,null,null,null,null,null,null,null,null,null,null,null,262,0.13621414552291666,-5721.2200290356159]
[null,null,null,null,null,null,null,null,null,null,null,null,null,null,null,null,null,null,null,null,null,null,null,null,null,null,null,null,null,null,null,null,null,null,null,null,null,null,null,null,null,null,null,null,263,0.12382197806038331,-1811.6460427899119]
[null,null,null,null,null,null,null,null,null,null,null,null,null,null,null,null,null,null,null,null,null,null,null,null,null,null,null,null,null,null,null,null,null,null,null,null,null,null,null,null,null,null,null,null,264,0,-754.45691082941687]
[null,null,null,null,null,null,null,null,null,null,null,null,null,null,null,null,null,null,null,null,null,null,null,null,null,null,null,null,null,null,null,null,null,null,null,null,null,null,null,null,null,null,null,null,265,0.10853679562537422,-399.47866378192754]
[null,null,null,null,null,null,null,null,null,null,null,null,null,null,null,null,null,null,null,null,null,null,null,null,null,null,null,null,null,null,null,null,null,null,null,null,null,null,null,null,null,null,null,null,266,0.12681475815039622,-137.31335504304909]
[null,null,null,null,null,null,null,null,null,null,null,null,null,null,null,null,null,null,null,null,null,null,null,null,null,null,null,null,null,null,null,null,null,null,null,null,null,null,null,null,null,null,null,null,267,-9.6020060641828442E-2,-273.92459292830864]
[null,null,null,null,null,null,null,null,null,null,null,null,null,null,null,null,null,null,null,null,null,null,null,null,null,null,null,null,null,null,null,null,null,null,null,null,null,null,null,null,null,null,null,null,268,0.10032046989349319,-2046.6419799018204]
[null,null,null,null,null,null,null,null,null,null,null,null,null,null,null,null,null,null,null,null,null,null,null,null,null,null,null,null,null,null,null,null,null,null,null,null,null,null,null,null,null,null,null,null,269,-0.10089245236784183,-444.51056509269574]
[null,null,null,null,null,null,null,null,null,null,null,null,null,null,null,null,null,null,null,null,null,null,null,null,null,null,null,null,null,null,null,null,null,null,null,null,null,null,null,null,null,null,null,null,270,0.1331144471551079,-765.39156228266518]
[null,null,null,null,null,null,null,null,null,null,null,null,null,null,null,null,null,null,null,null,null,null,null,null,null,null,null,null,null,null,null,null,null,null,null,null,null,null,null,null,null,null,null,null,271,0.13726116714996062,355.87637025939466]
[null,null,null,null,null,null,null,null,null,null,null,null,null,null,null,null,null,null,null,null,null,null,null,null,null,null,null,null,null,null,null,null,null,null,null,null,null,null,null,null,null,null,null,null,272,9.5299756167327443E-3,-801.9527490184314]
[null,null,null,null,null,null,null,null,null,null,null,null,null,null,null,null,null,null,null,null,null,null,null,null,null,null,null,null,null,null,null,null,null,null,null,null,null,null,null,null,null,null,null,null,273,3.1506808295104882E-2,1429.1455299913227]
[null,null,null,null,null,null,null,null,null,null,null,null,null,null,null,null,null,null,null,null,null,null,null,null,null,null,null,null,null,null,null,null,null,null,null,null,null,null,null,null,null,null,null,null,274,0.10180627399130227,782.84449976306632]
[null,null,null,null,null,null,null,null,null,null,null,null,null,null,null,null,null,null,null,null,null,null,null,null,null,null,null,null,null,null,null,null,null,null,null,null,null,null,null,null,null,null,null,null,275,0,-340.01560747222914]
[null,null,null,null,null,null,null,null,null,null,null,null,null,null,null,null,null,null,null,null,null,null,null,null,null,null,null,null,null,null,null,null,null,null,null,null,null,null,null,null,null,null,null,null,276,0.13385728731929036,-20306.665866913896]
[null,null,null,null,null,null,null,null,null,null,null,null,null,null,null,null,null,null,null,null,null,null,null,null,null,null,null,null,null,null,null,null,null,null,null,null,null,null,null,null,null,null,null,null,277,9.901334623648228E-2,327.75346580146436]
[null,null,null,null,null,null,null,null,null,null,null,null,null,null,null,null,null,null,null,null,null,null,null,null,null,null,null,null,null,null,null,null,null,null,null,null,null,null,null,null,null,null,null,null,278,1.452818567001124E-2,-6595.5348095790869]
[null,null,null,null,null,null,null,null,null,null,null,null,null,null,null,null,null,null,null,null,null,null,null,null,null,null,null,null,null,null,null,null,null,null,null,null,null,null,null,null,null,null,null,null,279,0.12439529324577014,-845.17464889162545]
[null,null,null,null,null,null,null,null,null,null,null,null,null,null,null,null,null,null,null,null,null,null,null,null,null,null,null,null,null,null,null,null,null,null,null,null,null,null,null,null,null,null,null,null,280,2.9550568203131622E-2,271.5659814577794]
[null,null,null,null,null,null,null,null,null,null,null,null,null,null,null,null,null,null,null,null,null,null,null,null,null,null,null,null,null,null,null,null,null,null,null,null,null,null,null,null,null,null,null,null,281,0.12430348881564635,-16694.36392121376]
[null,null,null,null,null,null,null,null,null,null,null,null,null,null,null,null,null,null,null,null,null,null,null,null,null,null,null,null,null,null,null,null,null,null,null,null,null,null,null,null,null,null,null,null,282,9.3785003527479538E-2,-278.14121605472474]
[null,null,null,null,null,null,null,null,null,null,null,null,null,null,null,null,null,null,null,null,null,null,null,null,null,null,null,null,null,null,null,null,null,null,null,null,null,null,null,null,null,null,null,null,283,5.7006932246993491E-3,-294.29892763934595]
[null,null,null,null,null,null,null,null,null,null,null,null,null,null,null,null,null,null,null,null,null,null,null,null,null,null,null,null,null,null,null,null,null,null,null,null,null,null,null,null,null,null,null,null,284,5.9686350601614535E-2,557.19680312633295]
[null,null,null,null,null,null,null,null,null,null,null,null,null,null,null,null,null,null,null,null,null,null,null,null,null,null,null,null,null,null,null,null,null,null,null,null,null,null,null,null,null,null,null,null,285,0.12413034934700795,31.812667334193531]
[null,null,null,null,null,null,null,null,null,null,null,null,null,null,null,null,null,null,null,null,null,null,null,null,null,null,null,null,null,null,null,null,null,null,null,null,null,null,null,null,null,null,null,null,286,0.12854504507179032,-163.5085597069897]
[null,null,null,null,null,null,null,null,null,null,null,null,null,null,null,null,null,null,null,null,null,null,null,null,null,null,null,null,null,null,null,null,null,null,null,null,null,null,null,null,null,null,null,null,287,-1.7441544171919565E-2,-6275.5946551743145]
[null,null,null,null,null,null,null,null,null,null,null,null,null,null,null,null,null,null,null,null,null,null,null,null,null,null,null,null,null,null,null,null,null,null,null,null,null,null,null,null,null,null,null,null,288,0.12013594456054444,-4709.7764884619783]
[null,null,null,null,null,null,null,null,null,null,null,null,null,null,null,null,null,null,null,null,null,null,null,null,null,null,null,null,null,null,null,null,null,null,null,null,null,null,null,null,null,null,null,null,289,0.13308468477261537,-887.92818497239875]
[null,null,null,null,null,null,null,null,null,null,null,null,null,null,null,null,null,null,null,null,null,null,null,null,null,null,null,null,null,null,null,null,null,null,null,null,null,null,null,null,null,null,null,null,290,0.13271862177670601,-297.46659870333235]
[null,null,null,null,null,null,null,null,null,null,null,null,null,null,null,null,null,null,null,null,null,null,null,null,null,null,null,null,null,null,null,null,null,null,null,null,null,null,null,null,null,null,null,null,291,0.13805911127680681,-4270.7351482989279]
[null,null,null,null,null,null,null,null,null,null,null,null,null,null,null,null,null,null,null,null,null,null,null,null,null,null,null,null,null,null,null,null,null,null,null,null,null,null,null,null,null,null,null,null,292,0.12972015035214957,-793.40074904052346]
[null,null,null,null,null,null,null,null,null,null,null,null,null,null,null,null,null,null,null,null,null,null,null,null,null,null,null,null,null,null,null,null,null,null,null,null,null,null,null,null,null,null,null,null,293,0,-231.02122157573504]
[null,null,null,null,null,null,null,null,null,null,null,null,null,null,null,null,null,null,null,null,null,null,null,null,null,null,null,null,null,null,null,null,null,null,null,null,null,null,null,null,null,null,null,null,294,0.13246370701237165,621.51330970936738]
[null,null,null,null,null,null,null,null,null,null,null,null,null,null,null,null,null,null,null,null,null,null,null,null,null,null,null,null,null,null,null,null,null,null,null,null,null,null,null,null,null,null,null,null,295,1.0483604313383132E-2,-962.10962597637786]
[null,null,null,null,null,null,null,null,null,null,null,null,null,null,null,null,null,null,null,null,null,null,null,null,null,null,null,null,null,null,null,null,null,null,null,null,null,null,null,null,null,null,null,null,296,0.13224667147930436,-815.36560110609071]
[null,null,null,null,null,null,null,null,null,null,null,null,null,null,null,null,null,null,null,null,null,null,null,null,null,null,null,null,null,null,null,null,null,null,null,null,null,null,null,null,null,null,null,null,297,-0.10643414307713783,-14180.247145262641]
[null,null,null,null,null,null,null,null,null,null,null,null,null,null,null,null,null,null,null,null,null,null,null,null,null,null,null,null,null,null,null,null,null,null,null,null,null,null,null,null,null,null,null,null,298,6.0864989941341485E-2,-1452.8631514795522]
[null,null,null,null,null,null,null,null,null,null,null,null,null,null,null,null,null,null,null,null,null,null,null,null,null,null,null,null,null,null,null,null,null,null,null,null,null,null,null,null,null,null,null,null,299,-0.10599855701776173,-14077.854081710448]
[null,null,null,null,null,null,null,null,null,null,null,null,null,null,null,null,null,null,null,null,null,null,null,null,null,null,null,null,null,null,null,null,null,null,null,null,null,null,null,null,null,null,null,null,300,0.11148762512725074,123.5834592892858]
[null,null,null,null,null,null,null,null,null,null,null,null,null,null,null,null,null,null,null,null,null,null,null,null,null,null,null,null,null,null,null,null,null,null,null,null,null,null,null,null,null,null,null,null,301,8.3326535481864417E-2,-960.6820891722457]
[null,null,null,null,null,null,null,null,null,null,null,null,null,null,null,null,null,null,null,null,null,null,null,null,null,null,null,null,null,null,null,null,null,null,null,null,null,null,null,null,null,null,null,null,302,-0.1018547755080268,-6336.6928388378929]
[null,null,null,null,null,null,null,null,null,null,null,null,null,null,null,null,null,null,null,null,null,null,null,null,null,null,null,null,null,null,null,null,null,null,null,null,null,null,null,null,null,null,null,null,303,-0.10557422092437085,1015.7458826704284]
[null,null,null,null,null,null,null,null,null,null,null,null,null,null,null,null,null,null,null,null,null,null,null,null,null,null,null,null,null,null,null,null,null,null,null,null,null,null,null,null,null,null,null,null,304,5.2705411516500211E-2,-22003.373227375916]
[null,null,null,null,null,null,null,null,null,null,null,null,null,null,null,null,null,null,null,null,null,null,null,null,null,null,null,null,null,null,null,null,null,null,null,null,null,null,null,null,null,null,null,null,305,0.11762431430540121,-446.44576025861926]
[null,null,null,null,null,null,null,null,null,null,null,null,null,null,null,null,null,null,null,null,null,null,null,null,null,null,null,null,null,null,null,null,null,null,null,null,null,null,null,null,null,null,null,null,306,0.12050174741117026,-11805.707450147065]
[null,null,null,null,null,null,null,null,null,null,null,null,null,null,null,null,null,null,null,null,null,null,null,null,null,null,null,null,null,null,null,null,null,null,null,null,null,null,null,null,null,null,null,null,307,6.7790666278873202E-2,-3018.5901433749223]
[null,null,null,null,null,null,null,null,null,null,null,null,null,null,null,null,null,null,null,null,null,null,null,null,null,null,null,null,null,null,null,null,null,null,null,null,null,null,null,null,null,null,null,null,308,6.2108582704183624E-2,-3163.5820556075123]
[null,null,null,null,null,null,null,null,null,null,null,null,null,null,null,null,null,null,null,null,null,null,null,null,null,null,null,null,null,null,null,null,null,null,null,null,null,null,null,null,null,null,null,null,309,-8.6588507360112477E-2,-490.19296661689646]
[null,null,null,null,null,null,null,null,null,null,null,null,null,null,null,null,null,null,null,null,null,null,null,null,null,null,null,null,null,null,null,null,null,null,null,null,null,null,null,null,null,null,null,null,310,-0.10345543529138856,109.18671296300435]
[null,null,null,null,null,null,null,null,null,null,null,null,null,null,null,null,null,null,null,null,null,null,null,null,null,null,null,null,null,null,null,null,null,null,null,null,null,null,null,null,null,null,null,null,311,2.9342902457365483E-2,-1362.067969257163]
[null,null,null,null,null,null,null,null,null,null,null,null,null,null,null,null,null,null,null,null,null,null,null,null,null,null,null,null,null,null,null,null,null,null,null,null,null,null,null,null,null,null,null,null,312,0.10075425973281182,-1322.2584562185764]
[null,null,null,null,null,null,null,null,null,null,null,null,null,null,null,null,null,null,null,null,null,null,null,null,null,null,null,null,null,null,null,null,null,null,null,null,null,null,null,null,null,null,null,null,313,-7.8602150624233591E-2,-11573.513605788325]
[null,null,null,null,null,null,null,null,null,null,null,null,null,null,null,null,null,null,null,null,null,null,null,null,null,null,null,null,null,null,null,null,null,null,null,null,null,null,null,null,null,null,null,null,314,1.6094149879309572E-2,140.20018569347104]
[null,null,null,null,null,null,null,null,null,null,null,null,null,null,null,null,null,null,null,null,null,null,null,null,null,null,null,null,null,null,null,null,null,null,null,null,null,null,null,null,null,null,null,null,315,0.1367299020137771,-10505.066738061154]
[null,null,null,null,null,null,null,null,null,null,null,null,null,null,null,null,null,null,null,null,null,null,null,null,null,null,null,null,null,null,null,null,null,null,null,null,null,null,null,null,null,null,null,null,316,9.365144135722292E-2,-0.39564557706886472]
[null,null,null,null,null,null,null,null,null,null,null,null,null,null,null,null,null,null,null,null,null,null,null,null,null,null,null,null,null,null,null,null,null,null,null,null,null,null,null,null,null,null,null,null,317,4.7384839625562392E-2,-5358.0692221774971]
[null,null,null,null,null,null,null,null,null,null,null,null,null,null,null,null,null,null,null,null,null,null,null,null,null,null,null,null,null,null,null,null,null,null,null,null,null,null,null,null,null,null,null,null,318,6.1725768447090656E-3,-5241.3605691697385]
[null,null,null,null,null,null,null,null,null,null,null,null,null,null,null,null,null,null,null,null,null,null,null,null,null,null,null,null,null,null,null,null,null,null,null,null,null,null,null,null,null,null,null,null,319,4.6179823351690463E-2,-2315.987819154579]
[null,null,null,null,null,null,null,null,null,null,null,null,null,null,null,null,null,null,null,null,null,null,null,null,null,null,null,null,null,null,null,null,null,null,null,null,null,null,null,null,null,null,null,null,320,0.11032106552116661,612.7435839007843]
[null,null,null,null,null,null,null,null,null,null,null,null,null,null,null,null,null,null,null,null,null,null,null,null,null,null,null,null,null,null,null,null,null,null,null,null,null,null,null,null,null,null,null,null,321,-7.6375271410772161E-2,1295.2248048347112]
[null,null,null,null,null,null,null,null,null,null,null,null,null,null,null,null,null,null,null,null,null,null,null,null,null,null,null,null,null,null,null,null,null,null,null,null,null,null,null,null,null,null,null,null,322,0.12919332095871627,-4373.6134600671139]
[null,null,null,null,null,null,null,null,null,null,null,null,null,null,null,null,null,null,null,null,null,null,null,null,null,null,null,null,null,null,null,null,null,null,null,null,null,null,null,null,null,null,null,null,323,0.12590482297871908,-909.88869367477434]
[null,null,null,null,null,null,null,null,null,null,null,null,null,null,null,null,null,null,null,null,null,null,null,null,null,null,null,null,null,null,null,null,null,null,null,null,null,null,null,null,null,null,null,null,324,0.12717120086468847,-321.56922301228258]
[null,null,null,null,null,null,null,null,null,null,null,null,null,null,null,null,null,null,null,null,null,null,null,null,null,null,null,null,null,null,null,null,null,null,null,null,null,null,null,null,null,null,null,null,325,0.13331924702378828,-5367.0923951468721]
[null,null,null,null,null,null,null,null,null,null,null,null,null,null,null,null,null,null,null,null,null,null,null,null,null,null,null,null,null,null,null,null,null,null,null,null,null,null,null,null,null,null,null,null,326,-0.10033879964973069,-2422.1645995033527]
[null,null,null,null,null,null,null,null,null,null,null,null,null,null,null,null,null,null,null,null,null,null,null,null,null,null,null,null,null,null,null,null,null,null,null,null,null,null,null,null,null,null,null,null,327,5.2872278647871584E-2,259.50614414185253]
[null,null,null,null,null,null,null,null,null,null,null,null,null,null,null,null,null,null,null,null,null,null,null,null,null,null,null,null,null,null,null,null,null,null,null,null,null,null,null,null,null,null,null,null,328,0.13864706919215775,-3782.7408804277802]
[null,null,null,null,null,null,null,null,null,null,null,null,null,null,null,null,null,null,null,null,null,null,null,null,null,null,null,null,null,null,null,null,null,null,null,null,null,null,null,null,null,null,null,null,329,-4.7919833004637091E-2,-493.6816011855268]
[null,null,null,null,null,null,null,null,null,null,null,null,null,null,null,null,null,null,null,null,null,null,null,null,null,null,null,null,null,null,null,null,null,null,null,null,null,null,null,null,null,null,null,null,330,0.10510023414482583,234.21147726242958]
[null,null,null,null,null,null,null,null,null,null,null,null,null,null,null,null,null,null,null,null,null,null,null,null,null,null,null,null,null,null,null,null,null,null,null,null,null,null,null,null,null,null,null,null,331,0.13934850874031279,-57.104288025858999]
[null,null,null,null,null,null,null,null,null,null,null,null,null,null,null,null,null,null,null,null,null,null,null,null,null,null,null,null,null,null,null,null,null,null,null,null,null,null,null,null,null,null,null,null,332,0,-177.327366155052]
[null,null,null,null,null,null,null,null,null,null,null,null,null,null,null,null,null,null,null,null,null,null,null,null,null,null,null,null,null,null,null,null,null,null,null,null,null,null,null,null,null,null,null,null,333,-8.28553148958735E-2,353.52991147317067]
[null,null,null,null,null,null,null,null,null,null,null,null,null,null,null,null,null,null,null,null,null,null,null,null,null,null,null,null,null,null,null,null,null,null,null,null,null,null,null,null,null,null,null,null,334,0.11625776971259816,-391.10031229492671]
[null,null,null,null,null,null,null,null,null,null,null,null,null,null,null,null,null,null,null,null,null,null,null,null,null,null,null,null,null,null,null,null,null,null,null,null,null,null,null,null,null,null,null,null,335,3.1774596652277554E-2,280.31321745724966]
[null,null,null,null,null,null,null,null,null,null,null,null,null,null,null,null,null,null,null,null,null,null,null,null,null,null,null,null,null,null,null,null,null,null,null,null,null,null,null,null,null,null,null,null,336,0.13102382962344961,-953.34110027912857]
[null,null,null,null,null,null,null,null,null,null,null,null,null,null,null,null,null,null,null,null,null,null,null,null,null,null,null,null,null,null,null,null,null,null,null,null,null,null,null,null,null,null,null,null,337,-9.8995984756415245E-2,-293.99777016295855]
[null,null,null,null,null,null,null,null,null,null,null,null,null,null,null,null,null,null,null,null,null,null,null,null,null,null,null,null,null,null,null,null,null,null,null,null,null,null,null,null,null,null,null,null,338,0.13960679855686253,864.00165593811926]
[null,null,null,null,null,null,null,null,null,null,null,null,null,null,null,null,null,null,null,null,null,null,null,null,null,null,null,null,null,null,null,null,null,null,null,null,null,null,null,null,null,null,null,null,339,-0.10060804399152912,-1025.7359866317281]
[null,null,null,null,null,null,null,null,null,null,null,null,null,null,null,null,null,null,null,null,null,null,null,null,null,null,null,null,null,null,null,null,null,null,null,null,null,null,null,null,null,null,null,null,340,8.7453793332686103E-2,487.36784640685335]
[null,null,null,null,null,null,null,null,null,null,null,null,null,null,null,null,null,null,null,null,null,null,null,null,null,null,null,null,null,null,null,null,null,null,null,null,null,null,null,null,null,null,null,null,341,-2.4424906541753444E-15,859.58458629585027]
[null,null,null,null,null,null,null,null,null,null,null,null,null,null,null,null,null,null,null,null,null,null,null,null,null,null,null,null,null,null,null,null,null,null,null,null,null,null,null,null,null,null,null,null,342,0.12406775365659017,-5471.2308665579449]
[null,null,null,null,null,null,null,null,null,null,null,null,null,null,null,null,null,null,null,null,null,null,null,null,null,null,null,null,null,null,null,null,null,null,null,null,null,null,null,null,null,null,null,null,343,-9.0769199164786318E-2,91.673708842792649]
[null,null,null,null,null,null,null,null,null,null,null,null,null,null,null,null,null,null,null,null,null,null,null,null,null,null,null,null,null,null,null,null,null,null,null,null,null,null,null,null,null,null,null,null,344,0.13393682966541798,-795.36749196835569]
[null,null,null,null,null,null,null,null,null,null,null,null,null,null,null,null,null,null,null,null,null,null,null,null,null,null,null,null,null,null,null,null,null,null,null,null,null,null,null,null,null,null,null,null,345,-8.7854783569387696E-2,1620.6677856729862]
[null,null,null,null,null,null,null,null,null,null,null,null,null,null,null,null,null,null,null,null,null,null,null,null,null,null,null,null,null,null,null,null,null,null,null,null,null,null,null,null,null,null,null,null,346,0.10409369028522086,-2733.0589850270526]
[null,null,null,null,null,null,null,null,null,null,null,null,null,null,null,null,null,null,null,null,null,null,null,null,null,null,null,null,null,null,null,null,null,null,null,null,null,null,null,null,null,null,null,null,347,-0.10673437721667001,-677.67462929100543]
[null,null,null,null,null,null,null,null,null,null,null,null,null,null,null,null,null,null,null,null,null,null,null,null,null,null,null,null,null,null,null,null,null,null,null,null,null,null,null,null,null,null,null,null,348,0.11592133249374248,-872.81642553084737]
[null,null,null,null,null,null,null,null,null,null,null,null,null,null,null,null,null,null,null,null,null,null,null,null,null,null,null,null,null,null,null,null,null,null,null,null,null,null,null,null,null,null,null,null,349,-3.7372221191467991E-2,-19115.040317324492]
[null,null,null,null,null,null,null,null,null,null,null,null,null,null,null,null,null,null,null,null,null,null,null,null,null,null,null,null,null,null,null,null,null,null,null,null,null,null,null,null,null,null,null,null,350,0,-548.54550013398512]
[null,null,null,null,null,null,null,null,null,null,null,null,null,null,null,null,null,null,null,null,null,null,null,null,null,null,null,null,null,null,null,null,null,null,null,null,null,null,null,null,null,null,null,null,351,0.12393592184847546,-27.159405742510085]
[null,null,null,null,null,null,null,null,null,null,null,null,null,null,null,null,null,null,null,null,null,null,null,null,null,null,null,null,null,null,null,null,null,null,null,null,null,null,null,null,null,null,null,null,352,0.12356248379780232,-768.11296581583383]
[null,null,null,null,null,null,null,null,null,null,null,null,null,null,null,null,null,null,null,null,null,null,null,null,null,null,null,null,null,null,null,null,null,null,null,null,null,null,null,null,null,null,null,null,353,0.13122251110476257,289.69064619667432]
[null,null,null,null,null,null,null,null,null,null,null,null,null,null,null,null,null,null,null,null,null,null,null,null,null,null,null,null,null,null,null,null,null,null,null,null,null,null,null,null,null,null,null,null,354,-8.3313315568565693E-2,-41.960916121176282]
[null,null,null,null,null,null,null,null,null,null,null,null,null,null,null,null,null,null,null,null,null,null,null,null,null,null,null,null,null,null,null,null,null,null,null,null,null,null,null,null,null,null,null,null,355,0,-4562.4658133970725]
[null,null,null,null,null,null,null,null,null,null,null,null,null,null,null,null,null,null,null,null,null,null,null,null,null,null,null,null,null,null,null,null,null,null,null,null,null,null,null,null,null,null,null,null,356,-0.1015358512675264,-895.48458604174334]
[null,null,null,null,null,null,null,null,null,null,null,null,null,null,null,null,null,null,null,null,null,null,null,null,null,null,null,null,null,null,null,null,null,null,null,null,null,null,null,null,null,null,null,null,357,0.12341978344545246,414.45302682384903]
[null,null,null,null,null,null,null,null,null,null,null,null,null,null,null,null,null,null,null,null,null,null,null,null,null,null,null,null,null,null,null,null,null,null,null,null,null,null,null,null,null,null,null,null,358,0.12949223043757607,-50.166692142352325]
[null,null,null,null,null,null,null,null,null,null,null,null,null,null,null,null,null,null,null,null,null,null,null,null,null,null,null,null,null,null,null,null,null,null,null,null,null,null,null,null,null,null,null,null,359,-7.6066163365828832E-2,-700.18899433822423]
[null,null,null,null,null,null,null,null,null,null,null,null,null,null,null,null,null,null,null,null,null,null,null,null,null,null,null,null,null,null,null,null,null,null,null,null,null,null,null,null,null,null,null,null,360,0.12424265592482275,978.81106503752972]
[null,null,null,null,null,null,null,null,null,null,null,null,null,null,null,null,null,null,null,null,null,null,null,null,null,null,null,null,null,null,null,null,null,null,null,null,null,null,null,null,null,null,null,null,361,0.13707088328481998,-2802.6097538375757]
[null,null,null,null,null,null,null,null,null,null,null,null,null,null,null,null,null,null,null,null,null,null,null,null,null,null,null,null,null,null,null,null,null,null,null,null,null,null,null,null,null,null,null,null,362,0,116.8570352336244]
[null,null,null,null,null,null,null,null,null,null,null,null,null,null,null,null,null,null,null,null,null,null,null,null,null,null,null,null,null,null,null,null,null,null,null,null,null,null,null,null,null,null,null,null,363,0.12513468950893891,-292.92306587412651]
[null,null,null,null,null,null,null,null,null,null,null,null,null,null,null,null,null,null,null,null,null,null,null,null,null,null,null,null,null,null,null,null,null,null,null,null,null,null,null,null,null,null,null,null,364,0.13875874761036577,-1532.2384215653417]
[null,null,null,null,null,null,null,null,null,null,null,null,null,null,null,null,null,null,null,null,null,null,null,null,null,null,null,null,null,null,null,null,null,null,null,null,null,null,null,null,null,null,null,null,365,0.11375352098602998,-196.14586801680986]
[null,null,null,null,null,null,null,null,null,null,null,null,null,null,null,null,null,null,null,null,null,null,null,null,null,null,null,null,null,null,null,null,null,null,null,null,null,null,null,null,null,null,null,null,366,-8.1283033668337223E-2,-721.68764616831129]
[null,null,null,null,null,null,null,null,null,null,null,null,null,null,null,null,null,null,null,null,null,null,null,null,null,null,null,null,null,null,null,null,null,null,null,null,null,null,null,null,null,null,null,null,367,0.12107870235399842,-2579.2179989907781]
[null,null,null,null,null,null,null,null,null,null,null,null,null,null,null,null,null,null,null,null,null,null,null,null,null,null,null,null,null,null,null,null,null,null,null,null,null,null,null,null,null,null,null,null,368,0.10771376955246836,263.4481211896391]
[null,null,null,null,null,null,null,null,null,null,null,null,null,null,null,null,null,null,null,null,null,null,null,null,null,null,null,null,null,null,null,null,null,null,null,null,null,null,null,null,null,null,null,null,369,0.1184870099678812,-3929.8150655429035]
[null,null,null,null,null,null,null,null,null,null,null,null,null,null,null,null,null,null,null,null,null,null,null,null,null,null,null,null,null,null,null,null,null,null,null,null,null,null,null,null,null,null,null,null,370,9.7942755895510714E-2,752.04043571522936]
[null,null,null,null,null,null,null,null,null,null,null,null,null,null,null,null,null,null,null,null,null,null,null,null,null,null,null,null,null,null,null,null,null,null,null,null,null,null,null,null,null,null,null,null,371,0.10578251805159011,-859.42040232537852]
[null,null,null,null,null,null,null,null,null,null,null,null,null,null,null,null,null,null,null,null,null,null,null,null,null,null,null,null,null,null,null,null,null,null,null,null,null,null,null,null,null,null,null,null,372,8.2372640133856589E-2,-1428.9559609189207]
[null,null,null,null,null,null,null,null,null,null,null,null,null,null,null,null,null,null,null,null,null,null,null,null,null,null,null,null,null,null,null,null,null,null,null,null,null,null,null,null,null,null,null,null,373,-1.0067530261863133E-2,-959.45833057534253]
[null,null,null,null,null,null,null,null,null,null,null,null,null,null,null,null,null,null,null,null,null,null,null,null,null,null,null,null,null,null,null,null,null,null,null,null,null,null,null,null,null,null,null,null,374,0.11504593187013623,1308.4200084146805]
[null,null,null,null,null,null,null,null,null,null,null,null,null,null,null,null,null,null,null,null,null,null,null,null,null,null,null,null,null,null,null,null,null,null,null,null,null,null,null,null,null,null,null,null,375,8.4678169420750349E-2,-218.01864215976511]
[null,null,null,null,null,null,null,null,null,null,null,null,null,null,null,null,null,null,null,null,null,null,null,null,null,null,null,null,null,null,null,null,null,null,null,null,null,null,null,null,null,null,null,null,376,4.1039233465688496E-2,-159.97509822217791]
[null,null,null,null,null,null,null,null,null,null,null,null,null,null,null,null,null,null,null,null,null,null,null,null,null,null,null,null,null,null,null,null,null,null,null,null,null,null,null,null,null,null,null,null,377,0.12107928658897982,-19723.280062025111]
[null,null,null,null,null,null,null,null,null,null,null,null,null,null,null,null,null,null,null,null,null,null,null,null,null,null,null,null,null,null,null,null,null,null,null,null,null,null,null,null,null,null,null,null,378,0.122871438762716,-3782.7683487889281]
[null,null,null,null,null,null,null,null,null,null,null,null,null,null,null,null,null,null,null,null,null,null,null,null,null,null,null,null,null,null,null,null,null,null,null,null,null,null,null,null,null,null,null,null,379,0.13250366563928762,-6206.325456698446]
[null,null,null,null,null,null,null,null,null,null,null,null,null,null,null,null,null,null,null,null,null,null,null,null,null,null,null,null,null,null,null,null,null,null,null,null,null,null,null,null,null,null,null,null,380,7.1451485227410627E-2,-174.52266640473206]
[null,null,null,null,null,null,null,null,null,null,null,null,null,null,null,null,null,null,null,null,null,null,null,null,null,null,null,null,null,null,null,null,null,null,null,null,null,null,null,null,null,null,null,null,381,1.5676960724900102E-2,-175.14291296550203]